Workbook

Sheet A1.1 Distributor Information
C3: ="Name of LDC: " &D8 -> Name of LDC: EPCOR Natural Gas Limited Partnership
C4: ="OEB Application Number: " & D9 -> OEB Application Number: EB-2023-0161 Exhibit A - 2024 Custom Incentive Application
C6: Distributor Information
C8: Distributor Name | D8: EPCOR Natural Gas Limited Partnership
C9: OEB Application Number | D9: EB-2023-0161 Exhibit A - 2024 Custom Incentive Application
C12: =MID(CELL("filename",A1),FIND("]",CELL("filename",A1))+1,255) -> A1.1 Distributor Information

Sheet B1.1 Current Distribution Rates
C2: ='A1.1 Distributor Information'!C3 -> Name of LDC: EPCOR Natural Gas Limited Partnership
C3: ='A1.1 Distributor Information'!C4 -> OEB Application Number: EB-2023-0161 Exhibit A - 2024 Custom Incentive Application
C5: Current Distribution Tariff Sheet Rates
E7: Fixed | G7: Delivery Charge | J7: Delivery Charge
C8: Rate Class | E8: Monthly Base | F8: =OneDollar -> Bill 32 Rate | G8: Tier 1 | H8: Tier 2 | I8: Tier 3 | J8: Contract Demand | K8: Gas Supply | L8: Upstream Recovery Charge | M8: Transportation & Storage Charge | N8: Transportation Charge From Dawn | O8: Transportation Charge From Kirkwall | P8: Transportation Charge From Parkway | Q8: Federal Carbon Charge | R8: Facility Carbon Charge
E9: $/month | F9: $ / month | G9: ₵ / m3 | H9: ₵ / m3 | I9: ₵ / m3 | J9: ₵ /contracted m3 | K9: ₵ / m3 | L9: (A) | M9: ₵ / m3 | N9: ₵ /contracted m3 | O9: ₵ /contracted m3 | P9: ₵ /contracted m3 | Q9: ₵ / m3 | R9: ₵ / m3
C10: Rate 1 | D10: General Firm Service | E10: 26.81 | F10: 1 | G10: 28.72 | H10: 28.1542 | I10: 27.3226 | K10: 15.7983 | L10: 1.474 | M10: 2.6982 | Q10: 12.39 | R10: 0.0011
C11: Rate 6 | D11: Large Volume General Firm Service | E11: 109.33 | F11: 1 | G11: 26.4949 | H11: 23.8455 | I11: 22.653 | K11: 15.7983 | L11: 2.92 | M11: 5.6413 | Q11: 12.39 | R11: 0.0011
C12: Rate 11 | D12: Large Volume Seasonal Service | E12: 218.66 | F12: 1 | G12: 16.4578 | H12: =G12 -> 16.4578 | I12: =H12 -> 16.4578 | K12: 15.7983 | L12: 0.0352 | M12: 1.8166 | Q12: 12.39 | R12: 0.0011
C13: Rate 16 | D13: Contracted Firm Service | E13: 1607.77 | F13: 1 | J13: 109.665 | L13: 14.2434 | N13: 18.2999 | O13: 11.848 | P13: 11.848 | Q13: 12.39 | R13: 0.0011
C14: (A) Rates 1, 6, and 11 all charged on cents / m3 basis. Rate 16 billed on cents / m3 of contracted demand basis
C18: Name for $1 Charge: | D18: Bill 32 Rate

Sheet B1.2 Billing Determinants
C2: ='A1.1 Distributor Information'!C3 -> Name of LDC: EPCOR Natural Gas Limited Partnership
C3: ='A1.1 Distributor Information'!C4 -> OEB Application Number: EB-2023-0161 Exhibit A - 2024 Custom Incentive Application
C5: Billing Determinants
E7: Fixed | F7: Delivery Charge | I7: Delivery Charge
C8: Rate Class | E8: Monthly Base | F8: Tier 1 | G8: Tier 2 | H8: Tier 3 | I8: Contract Demand | J8: Gas Supply
C9: Rate 1 | D9: General Firm Service | E9: 5606 | F9: 4790547 | G9: 3231919 | H9: 272765 | J9: 8295231
C10: Rate 6 | D10: Large Volume General Firm Service | E10: 33 | F10: 320072 | G10: 845750 | H10: 1032696 | J10: 2198518
C11: Rate 11 | D11: Large Volume Seasonal Service | E11: 7 | H11: 1386497 | J11: 1386497
C12: Rate 16 | D12: Contracted Firm Service | E12: 3 | I12: 95824 | J12: 0

Sheet B1.3 Current Rev From Rates
C2: ='A1.1 Distributor Information'!C3 -> Name of LDC: EPCOR Natural Gas Limited Partnership
C3: ='A1.1 Distributor Information'!C4 -> OEB Application Number: EB-2023-0161 Exhibit A - 2024 Custom Incentive Application
C6: Forecasted Revenue from Current Rates
C8: Months / Year | D8: 12
D9: EB-2023-0161 Exhibit A - 2024 Custom Incentive Application
E11: Fixed Monthly | G11: Delivery Charge | J11: Delivery Charge
C12: Rate Class | E12: Base | F12: =OneDollar -> Bill 32 Rate | G12: Tier 1 | H12: Tier 2 | I12: Tier 3 | J12: Contract Demand | K12: Gas Supply | L12: Upstream Recovery Charge | M12: Transportation & Storage Charge | N12: Federal Carbon Charge | O12: Total
M13: (A)
C14: Rate 1 | D14: General Firm Service | E14: ='B1.2 Billing Determinants'!E9*'B1.1 Current Distribution Rates'!E10*$D$8 -> 1803562.32 | F14: ='B1.1 Current Distribution Rates'!F10*'B1.2 Billing Determinants'!E9*$D$8 -> 67272 | G14: ='B1.2 Billing Determinants'!F9*'B1.1 Current Distribution Rates'!G10/100 -> 1375845.098 | H14: ='B1.2 Billing Determinants'!G9*'B1.1 Current Distribution Rates'!H10/100 -> 909920.9391 | I14: ='B1.2 Billing Determinants'!H9*'B1.1 Current Distribution Rates'!I10/100 -> 74526.48989 | J14: ='B1.2 Billing Determinants'!I9*'B1.1 Current Distribution Rates'!J10/100*$D$8 -> 0 | K14: ='B1.2 Billing Determinants'!J9*'B1.1 Current Distribution Rates'!K10/100 -> 1310505.479 | L14: ='B1.1 Current Distribution Rates'!L10*'B1.2 Billing Determinants'!$J9/100 -> 122271.7049 | M14: ='B1.1 Current Distribution Rates'!M10*'B1.2 Billing Determinants'!$J9/100 -> 223821.9228 | N14: ='B1.1 Current Distribution Rates'!Q10*'B1.2 Billing Determinants'!J9/100 -> 1027779.121 | O14: =SUM(E14:N14) -> 6915505.075
C15: Rate 6 | D15: Large Volume General Firm Service | E15: ='B1.2 Billing Determinants'!E10*'B1.1 Current Distribution Rates'!E11*$D$8 -> 43294.68 | F15: ='B1.1 Current Distribution Rates'!F11*'B1.2 Billing Determinants'!E10*$D$8 -> 396 | G15: ='B1.2 Billing Determinants'!F10*'B1.1 Current Distribution Rates'!G11/100 -> 84802.75633 | H15: ='B1.2 Billing Determinants'!G10*'B1.1 Current Distribution Rates'!H11/100 -> 201673.3163 | I15: ='B1.2 Billing Determinants'!H10*'B1.1 Current Distribution Rates'!I11/100 -> 233936.6249 | J15: ='B1.2 Billing Determinants'!I10*'B1.1 Current Distribution Rates'!J11/100*$D$8 -> 0 | K15: ='B1.2 Billing Determinants'!J10*'B1.1 Current Distribution Rates'!K11/100 -> 347328.4692 | L15: ='B1.1 Current Distribution Rates'!L11*'B1.2 Billing Determinants'!$J10/100 -> 64196.7256 | M15: ='B1.1 Current Distribution Rates'!M11*'B1.2 Billing Determinants'!$J10/100 -> 124024.9959 | N15: ='B1.1 Current Distribution Rates'!Q11*'B1.2 Billing Determinants'!J10/100 -> 272396.3802 | O15: =SUM(E15:N15) -> 1372049.948
C16: Rate 11 | D16: Large Volume Seasonal Service | E16: ='B1.2 Billing Determinants'!E11*'B1.1 Current Distribution Rates'!E12*$D$8 -> 18367.44 | F16: ='B1.1 Current Distribution Rates'!F12*'B1.2 Billing Determinants'!E11*$D$8 -> 84 | G16: ='B1.2 Billing Determinants'!F11*'B1.1 Current Distribution Rates'!G12/100 -> 0 | H16: ='B1.2 Billing Determinants'!G11*'B1.1 Current Distribution Rates'!H12/100 -> 0 | I16: ='B1.2 Billing Determinants'!H11*'B1.1 Current Distribution Rates'!I12/100 -> 228186.9033 | J16: ='B1.2 Billing Determinants'!I11*'B1.1 Current Distribution Rates'!J12/100*$D$8 -> 0 | K16: ='B1.2 Billing Determinants'!J11*'B1.1 Current Distribution Rates'!K12/100 -> 219042.9556 | L16: ='B1.1 Current Distribution Rates'!L12*'B1.2 Billing Determinants'!$J11/100 -> 488.046944 | M16: ='B1.1 Current Distribution Rates'!M12*'B1.2 Billing Determinants'!$J11/100 -> 25187.1045 | N16: ='B1.1 Current Distribution Rates'!Q12*'B1.2 Billing Determinants'!J11/100 -> 171786.9783 | O16: =SUM(E16:N16) -> 663143.4286
C17: Rate 16 | D17: Contracted Firm Service | E17: ='B1.2 Billing Determinants'!E12*'B1.1 Current Distribution Rates'!E13*$D$8 -> 57879.72 | F17: ='B1.1 Current Distribution Rates'!F13*'B1.2 Billing Determinants'!E12*$D$8 -> 36 | G17: ='B1.2 Billing Determinants'!F12*'B1.1 Current Distribution Rates'!G13/100 -> 0 | H17: ='B1.2 Billing Determinants'!G12*'B1.1 Current Distribution Rates'!H13/100 -> 0 | I17: ='B1.2 Billing Determinants'!H12*'B1.1 Current Distribution Rates'!I13/100 -> 0 | J17: ='B1.2 Billing Determinants'!I12*'B1.1 Current Distribution Rates'!J13/100*$D$8 -> 1261024.675 | K17: ='B1.2 Billing Determinants'!J12*'B1.1 Current Distribution Rates'!K13/100 -> 0 | L17: ='B1.1 Current Distribution Rates'!L13*'B1.2 Billing Determinants'!$I12*$D$8/100 -> 163783.1474 | M17: ='B1.1 Current Distribution Rates'!N13*'B1.2 Billing Determinants'!$I12/100*$D$8 -> 210428.3541 | N17: ='B1.1 Current Distribution Rates'!Q13*'B1.2 Billing Determinants'!I12/100*D8 -> 142471.1232 | O17: =SUM(E17:N17) -> 1835623.02
C18: Total Revenue | E18: =SUM(E14:E17) -> 1923104.16 | F18: 67788 | G18: 1460647.855 | H18: 1111594.255 | I18: 536650.018 | J18: 1261024.675 | K18: 1876876.904 | L18: 350739.6249 | M18: 583462.3774 | N18: 1614433.603 | O18: 10786321.47
C19: (A) Transportation & Storage for Rates 1, 6, and 11. Transportation only for Rate 16.

Sheet C1.1 Current Rate Riders
C2: ='A1.1 Distributor Information'!C3 -> Name of LDC: EPCOR Natural Gas Limited Partnership
C3: ='A1.1 Distributor Information'!C4 -> OEB Application Number: EB-2023-0161 Exhibit A - 2024 Custom Incentive Application
C5: Current Rate Riders
C7: Description: | E7: Delay in Revenue Recovery Rate Rider
C8: Effective Until: | E8: Dec 31, 2028
C10: Rate 1 | General Firm Service | D10: cents / m3 volume | E10: 1.633 | F10: Cents/m3
C11: Rate 6 | Large Volume General Firm Service | D11: cents / m3 volume | E11: 0.909 | F11: Cents/m3
C12: Rate 11 | Large Volume Seasonal Service | D12: cents / m3 volume | E12: 0.5524 | F12: Cents/m3
C13: Rate 16 | Contracted Firm Service | D13: cents / contracted demand / month | E13: 0.0601 | F13: $/contracted demand m3
C16: Energy Content Variance Account (ECVA)
E17: ECVA Rate Rider
C19: Rate 1 | General Firm Service | E19: 0.3437 | F19: Cents/m3
C20: Rate 6 | Large Volume General Firm Service | E20: 0.2778 | F20: Cents/m3
C21: Rate 11 | Large Volume Seasonal Service | E21: 0.1857 | F21: Cents/m3
C22: Rate 16 | Contracted Firm Service | E22: 0 | F22: Cents/contracted demand m3
C25: Contribution in Aid of Construction Variance Account (CIACVA)
E26: CIACVA Rate Rider
C28: Rate 1 | General Firm Service | E28: 3.3388 | F28: Cents/m3
C29: Rate 6 | Large Volume General Firm Service | E29: 3.1385 | F29: Cents/m3
C30: Rate 11 | Large Volume Seasonal Service | E30: 0.6074 | F30: Cents/m3
C31: Rate 16 | Contracted Firm Service | E31: 4.5311 | F31: Cents/contracted demand m3
C34: Municipal Tax Variance Account (MTVA)
E35: MTVA Rate Rider
C37: Rate 1 | General Firm Service | E37: -2.7906 | F37: Cents/m3
C38: Rate 6 | Large Volume General Firm Service | E38: -3.404 | F38: Cents/m3
C39: Rate 11 | Large Volume Seasonal Service | E39: -0.6604 | F39: Cents/m3
C40: Rate 16 | Contracted Firm Service | E40: -4.5564 | F40: Cents/contracted demand m3

Sheet D1.1 Rate 1 Adjustment
C2: ='A1.1 Distributor Information'!C3 -> Name of LDC: EPCOR Natural Gas Limited Partnership
C3: ='A1.1 Distributor Information'!C4 -> OEB Application Number: EB-2023-0161 Exhibit A - 2024 Custom Incentive Application
C5: Rate 1 Incentive Rate Adjustment
C6: =MID(CELL("filename",A1),FIND("]",CELL("filename",A1))+1,255) -> D1.1 Rate 1 Adjustment
C8: Rate 1
C10: GDP-IPI
C11: Less Productivity
C12: Less Stretch Factor
C13: Incentive Rate Adjustment | E13: 0.0238
C14: Months / Year | E14: 12
D16: Unit | E16: Current Rate | F16: Price Cap | G16: Adjusted Rates | H16: Billing Determinants | I16: Revenue
C17: Monthly Base | D17: $/month | E17: ='B1.1 Current Distribution Rates'!E10 -> 26.81 | F17: =$E$13 -> 0.0238 | G17: =E17*(1+F17) -> 27.448078 | H17: =INDEX('B1.2 Billing Determinants'!$E$9:$J$12,MATCH($C$8,'B1.2 Billing Determinants'!$C$9:$C$12,0),MATCH(C17,'B1.2 Billing Determinants'!$E$8:$J$8,0)) -> 5606 | I17: =G17*H17*$E$14 -> 1846487.103
C18: =OneDollar -> Bill 32 Rate | D18: $/month | E18: ='B1.1 Current Distribution Rates'!F10 -> 1 | F18: 0 | G18: =E18*(1+F18) -> 1 | H18: =H17 -> 5606 | I18: =G18*H18*$E$14 -> 67272
C19: Tier 1 | D19: cents / m3 | E19: ='B1.1 Current Distribution Rates'!G10 -> 28.72 | F19: =$E$13 -> 0.0238 | G19: =E19*(1+F19) -> 29.403536 | H19: =INDEX('B1.2 Billing Determinants'!$E$9:$J$12,MATCH($C$8,'B1.2 Billing Determinants'!$C$9:$C$12,0),MATCH(C19,'B1.2 Billing Determinants'!$E$8:$J$8,0)) -> 4790547 | I19: =G19*H19/100 -> 1408590.212
C20: Tier 2 | D20: cents / m3 | E20: ='B1.1 Current Distribution Rates'!H10 -> 28.1542 | F20: =$E$13 -> 0.0238 | G20: 28.82426996 | H20: =INDEX('B1.2 Billing Determinants'!$E$9:$J$12,MATCH($C$8,'B1.2 Billing Determinants'!$C$9:$C$12,0),MATCH(C20,'B1.2 Billing Determinants'!$E$8:$J$8,0)) -> 3231919 | I20: =G20*H20/100 -> 931577.0574
C21: Tier 3 | D21: cents / m3 | E21: ='B1.1 Current Distribution Rates'!I10 -> 27.3226 | F21: =$E$13 -> 0.0238 | G21: 27.97287788 | H21: =INDEX('B1.2 Billing Determinants'!$E$9:$J$12,MATCH($C$8,'B1.2 Billing Determinants'!$C$9:$C$12,0),MATCH(C21,'B1.2 Billing Determinants'!$E$8:$J$8,0)) -> 272765 | I21: 76300.22035
C22: Contract Demand | D22: cents / m3 | E22: ='B1.1 Current Distribution Rates'!J10 -> 0 | F22: =$E$13 -> 0.0238 | G22: 0 | H22: =INDEX('B1.2 Billing Determinants'!$E$9:$J$12,MATCH($C$8,'B1.2 Billing Determinants'!$C$9:$C$12,0),MATCH(C22,'B1.2 Billing Determinants'!$E$8:$J$8,0)) -> 0 | I22: =G22*H22/100*$E$14 -> 0
C23: Gas Supply | D23: cents / m3 | E23: ='B1.1 Current Distribution Rates'!K10 -> 15.7983 | F23: 0 | G23: 15.7983 | H23: =INDEX('B1.2 Billing Determinants'!$E$9:$J$12,MATCH($C$8,'B1.2 Billing Determinants'!$C$9:$C$12,0),MATCH(C23,'B1.2 Billing Determinants'!$E$8:$J$8,0)) -> 8295231 | I23: 1310505.479
C24: Upstream Recovery Charge | D24: cents / m3 | E24: ='B1.1 Current Distribution Rates'!L10 -> 1.474 | F24: 0 | G24: 1.474 | H24: =H23 -> 8295231 | I24: 122271.7049
C25: Transportation & Storage Charge | D25: cents / m3 | E25: ='B1.1 Current Distribution Rates'!M10 -> 2.6982 | F25: 0 | G25: 2.6982 | H25: =H24 -> 8295231 | I25: 223821.9228
C26: Federal Carbon Charge | D26: cents / m3 | E26: ='B1.1 Current Distribution Rates'!Q10 -> 12.39 | F26: 0 | G26: 12.39 | H26: =H25 -> 8295231 | I26: =G26*H26/100 -> 1027779.121
I27: =SUM(I17:I26) -> 7014604.821

Sheet D1.2 Rate 6 Adjustment
C2: ='A1.1 Distributor Information'!C3 -> Name of LDC: EPCOR Natural Gas Limited Partnership
C3: ='A1.1 Distributor Information'!C4 -> OEB Application Number: EB-2023-0161 Exhibit A - 2024 Custom Incentive Application
C5: Rate 6 Incentive Rate Adjustment
C6: =MID(CELL("filename",A1),FIND("]",CELL("filename",A1))+1,255) -> D1.2 Rate 6 Adjustment
C8: Rate 6
C10: GDP-IPI
C11: Less Productivity
C12: Less Stretch Factor
C13: Incentive Rate Adjustment | E13: ='D1.1 Rate 1 Adjustment'!E13 -> 0.0238
C14: Months / Year | E14: 12
D16: Unit | E16: Current Rate | F16: Price Cap | G16: Adjusted Rates | H16: Billing Determinants | I16: Revenue
C17: Monthly Base | D17: $/month | E17: ='B1.1 Current Distribution Rates'!E11 -> 109.33 | F17: =$E$13 -> 0.0238 | G17: =E17*(1+F17) -> 111.932054 | H17: =INDEX('B1.2 Billing Determinants'!$E$9:$J$12,MATCH($C$8,'B1.2 Billing Determinants'!$C$9:$C$12,0),MATCH(C17,'B1.2 Billing Determinants'!$E$8:$J$8,0)) -> 33 | I17: =G17*H17*12 -> 44325.09338
C18: =OneDollar -> Bill 32 Rate | D18: $/month | E18: ='B1.1 Current Distribution Rates'!F11 -> 1 | F18: 0 | G18: =E18*(1+F18) -> 1 | H18: =H17 -> 33 | I18: =G18*H18*12 -> 396
C19: Tier 1 | D19: cents / m3 | E19: ='B1.1 Current Distribution Rates'!G11 -> 26.4949 | F19: =$E$13 -> 0.0238 | G19: =E19*(1+F19) -> 27.12547862 | H19: =INDEX('B1.2 Billing Determinants'!$E$9:$J$12,MATCH($C$8,'B1.2 Billing Determinants'!$C$9:$C$12,0),MATCH(C19,'B1.2 Billing Determinants'!$E$8:$J$8,0)) -> 320072 | I19: =G19*H19/100 -> 86821.06193
C20: Tier 2 | D20: cents / m3 | E20: ='B1.1 Current Distribution Rates'!H11 -> 23.8455 | F20: =$E$13 -> 0.0238 | G20: 24.4130229 | H20: =INDEX('B1.2 Billing Determinants'!$E$9:$J$12,MATCH($C$8,'B1.2 Billing Determinants'!$C$9:$C$12,0),MATCH(C20,'B1.2 Billing Determinants'!$E$8:$J$8,0)) -> 845750 | I20: =G20*H20/100 -> 206473.1412
C21: Tier 3 | D21: cents / m3 | E21: ='B1.1 Current Distribution Rates'!I11 -> 22.653 | F21: =$E$13 -> 0.0238 | G21: 23.1921414 | H21: =INDEX('B1.2 Billing Determinants'!$E$9:$J$12,MATCH($C$8,'B1.2 Billing Determinants'!$C$9:$C$12,0),MATCH(C21,'B1.2 Billing Determinants'!$E$8:$J$8,0)) -> 1032696 | I21: 239504.3166
C22: Contract Demand | D22: cents / m3 | E22: ='B1.1 Current Distribution Rates'!J11 -> 0 | F22: =$E$13 -> 0.0238 | G22: 0 | H22: =INDEX('B1.2 Billing Determinants'!$E$9:$J$12,MATCH($C$8,'B1.2 Billing Determinants'!$C$9:$C$12,0),MATCH(C22,'B1.2 Billing Determinants'!$E$8:$J$8,0)) -> 0 | I22: =G22*H22/100*12 -> 0
C23: Gas Supply | D23: cents / m3 | E23: ='B1.1 Current Distribution Rates'!K11 -> 15.7983 | F23: 0 | G23: 15.7983 | H23: =INDEX('B1.2 Billing Determinants'!$E$9:$J$12,MATCH($C$8,'B1.2 Billing Determinants'!$C$9:$C$12,0),MATCH(C23,'B1.2 Billing Determinants'!$E$8:$J$8,0)) -> 2198518 | I23: 347328.4692
C24: Upstream Recovery Charge | D24: cents / m3 | E24: =INDEX('B1.1 Current Distribution Rates'!$E$10:$Q$13,MATCH($C$8,'B1.1 Current Distribution Rates'!$C$10:$C$13,0),MATCH(C24,'B1.1 Current Distribution Rates'!$E$8:$Q$8,0)) -> 2.92 | F24: 0 | G24: 2.92 | H24: =H23 -> 2198518 | I24: 64196.7256
C25: Transportation & Storage Charge | D25: cents / m3 | E25: =INDEX('B1.1 Current Distribution Rates'!$E$10:$Q$13,MATCH($C$8,'B1.1 Current Distribution Rates'!$C$10:$C$13,0),MATCH(C25,'B1.1 Current Distribution Rates'!$E$8:$Q$8,0)) -> 5.6413 | F25: ='D1.1 Rate 1 Adjustment'!$F$25 -> 0 | G25: 5.6413 | H25: =H24 -> 2198518 | I25: 124024.9959
C26: Federal Carbon Charge | D26: cents / m3 | E26: =INDEX('B1.1 Current Distribution Rates'!$E$10:$Q$13,MATCH($C$8,'B1.1 Current Distribution Rates'!$C$10:$C$13,0),MATCH(C26,'B1.1 Current Distribution Rates'!$E$8:$Q$8,0)) -> 12.39 | F26: 0 | G26: 12.39 | H26: =H25 -> 2198518 | I26: 272396.3802
I27: =SUM(I17:I26) -> 1385466.184

Sheet D1.3 Rate 11 Adjustment
C2: ='A1.1 Distributor Information'!C3 -> Name of LDC: EPCOR Natural Gas Limited Partnership
C3: ='A1.1 Distributor Information'!C4 -> OEB Application Number: EB-2023-0161 Exhibit A - 2024 Custom Incentive Application
C5: Rate 11 Incentive Rate Adjustment
C6: =MID(CELL("filename",A1),FIND("]",CELL("filename",A1))+1,255) -> D1.3 Rate 11 Adjustment
C8: Rate 11
C10: GDP-IPI
C11: Less Productivity
C12: Less Stretch Factor
C13: Incentive Rate Adjustment | E13: ='D1.1 Rate 1 Adjustment'!E13 -> 0.0238
C14: Months / Year | E14: 12
D16: Unit | E16: Current Rate | F16: Price Cap | G16: Adjusted Rates | H16: Billing Determinants | I16: Revenue
C17: Monthly Base | D17: $/month | E17: =INDEX('B1.1 Current Distribution Rates'!$E$10:$Q$13,MATCH($C$8,'B1.1 Current Distribution Rates'!$C$10:$C$13,0),MATCH(C17,'B1.1 Current Distribution Rates'!$E$8:$Q$8,0)) -> 218.66 | F17: =$E$13 -> 0.0238 | G17: =E17*(1+F17) -> 223.864108 | H17: =INDEX('B1.2 Billing Determinants'!$E$9:$J$12,MATCH($C$8,'B1.2 Billing Determinants'!$C$9:$C$12,0),MATCH(C17,'B1.2 Billing Determinants'!$E$8:$J$8,0)) -> 7 | I17: =G17*H17*12 -> 18804.58507
C18: =OneDollar -> Bill 32 Rate | D18: $/month | E18: =INDEX('B1.1 Current Distribution Rates'!$E$10:$Q$13,MATCH($C$8,'B1.1 Current Distribution Rates'!$C$10:$C$13,0),MATCH(C18,'B1.1 Current Distribution Rates'!$E$8:$Q$8,0)) -> 1 | F18: 0 | G18: =E18*(1+F18) -> 1 | H18: =H17 -> 7 | I18: =G18*H18*12 -> 84
C19: Tier 1 | D19: cents / m3 | E19: =INDEX('B1.1 Current Distribution Rates'!$E$10:$Q$13,MATCH($C$8,'B1.1 Current Distribution Rates'!$C$10:$C$13,0),MATCH(C19,'B1.1 Current Distribution Rates'!$E$8:$Q$8,0)) -> 16.4578 | F19: =$E$13 -> 0.0238 | G19: 16.84949564 | H19: =INDEX('B1.2 Billing Determinants'!$E$9:$J$12,MATCH($C$8,'B1.2 Billing Determinants'!$C$9:$C$12,0),MATCH(C19,'B1.2 Billing Determinants'!$E$8:$J$8,0)) -> 0 | I19: =G19*H19/100 -> 0
C20: Tier 2 | D20: cents / m3 | E20: =INDEX('B1.1 Current Distribution Rates'!$E$10:$Q$13,MATCH($C$8,'B1.1 Current Distribution Rates'!$C$10:$C$13,0),MATCH(C20,'B1.1 Current Distribution Rates'!$E$8:$Q$8,0)) -> 16.4578 | F20: =$E$13 -> 0.0238 | G20: 16.84949564 | H20: =INDEX('B1.2 Billing Determinants'!$E$9:$J$12,MATCH($C$8,'B1.2 Billing Determinants'!$C$9:$C$12,0),MATCH(C20,'B1.2 Billing Determinants'!$E$8:$J$8,0)) -> 0 | I20: =G20*H20/100 -> 0
C21: Tier 3 | D21: cents / m3 | E21: =INDEX('B1.1 Current Distribution Rates'!$E$10:$Q$13,MATCH($C$8,'B1.1 Current Distribution Rates'!$C$10:$C$13,0),MATCH(C21,'B1.1 Current Distribution Rates'!$E$8:$Q$8,0)) -> 16.4578 | F21: =$E$13 -> 0.0238 | G21: 16.84949564 | H21: =INDEX('B1.2 Billing Determinants'!$E$9:$J$12,MATCH($C$8,'B1.2 Billing Determinants'!$C$9:$C$12,0),MATCH(C21,'B1.2 Billing Determinants'!$E$8:$J$8,0)) -> 1386497 | I21: 233617.7516
C22: Contract Demand | D22: cents / m3 | E22: =INDEX('B1.1 Current Distribution Rates'!$E$10:$Q$13,MATCH($C$8,'B1.1 Current Distribution Rates'!$C$10:$C$13,0),MATCH(C22,'B1.1 Current Distribution Rates'!$E$8:$Q$8,0)) -> 0 | F22: =$E$13 -> 0.0238 | G22: 0 | H22: =INDEX('B1.2 Billing Determinants'!$E$9:$J$12,MATCH($C$8,'B1.2 Billing Determinants'!$C$9:$C$12,0),MATCH(C22,'B1.2 Billing Determinants'!$E$8:$J$8,0)) -> 0 | I22: =G22*H22/100*12 -> 0
C23: Gas Supply | D23: cents / m3 | E23: =INDEX('B1.1 Current Distribution Rates'!$E$10:$Q$13,MATCH($C$8,'B1.1 Current Distribution Rates'!$C$10:$C$13,0),MATCH(C23,'B1.1 Current Distribution Rates'!$E$8:$Q$8,0)) -> 15.7983 | F23: 0 | G23: 15.7983 | H23: =INDEX('B1.2 Billing Determinants'!$E$9:$J$12,MATCH($C$8,'B1.2 Billing Determinants'!$C$9:$C$12,0),MATCH(C23,'B1.2 Billing Determinants'!$E$8:$J$8,0)) -> 1386497 | I23: 219042.9556
C24: Upstream Recovery Charge | D24: cents / m3 | E24: =INDEX('B1.1 Current Distribution Rates'!$E$10:$Q$13,MATCH($C$8,'B1.1 Current Distribution Rates'!$C$10:$C$13,0),MATCH(C24,'B1.1 Current Distribution Rates'!$E$8:$Q$8,0)) -> 0.0352 | F24: 0 | G24: 0.0352 | H24: =H23 -> 1386497 | I24: 488.046944
C25: Transportation & Storage Charge | D25: cents / m3 | E25: =INDEX('B1.1 Current Distribution Rates'!$E$10:$Q$13,MATCH($C$8,'B1.1 Current Distribution Rates'!$C$10:$C$13,0),MATCH(C25,'B1.1 Current Distribution Rates'!$E$8:$Q$8,0)) -> 1.8166 | F25: ='D1.1 Rate 1 Adjustment'!$F$25 -> 0 | G25: 1.8166 | H25: =H24 -> 1386497 | I25: 25187.1045
C26: Federal Carbon Charge | D26: cents / m3 | E26: =INDEX('B1.1 Current Distribution Rates'!$E$10:$Q$13,MATCH($C$8,'B1.1 Current Distribution Rates'!$C$10:$C$13,0),MATCH(C26,'B1.1 Current Distribution Rates'!$E$8:$Q$8,0)) -> 12.39 | F26: 0 | G26: 12.39 | H26: =H25 -> 1386497 | I26: 171786.9783
I27: =SUM(I17:I26) -> 669011.4219

Sheet D1.4 Rate 16 Adjustment
C2: ='A1.1 Distributor Information'!C3 -> Name of LDC: EPCOR Natural Gas Limited Partnership
C3: ='A1.1 Distributor Information'!C4 -> OEB Application Number: EB-2023-0161 Exhibit A - 2024 Custom Incentive Application
C5: Rate 16 Incentive Rate Adjustment
C6: =MID(CELL("filename",A1),FIND("]",CELL("filename",A1))+1,255) -> D1.4 Rate 16 Adjustment
C8: Rate 16
C10: GDP-IPI
C11: Less Productivity
C12: Less Stretch Factor
C13: Incentive Rate Adjustment | E13: ='D1.1 Rate 1 Adjustment'!E13 -> 0.0238
C14: Months / Year | E14: 12
D16: Unit | E16: Current Rate | F16: Price Cap | G16: Adjusted Rates | H16: Billing Determinants | I16: Revenue
C17: Monthly Base | D17: $/month | E17: =INDEX('B1.1 Current Distribution Rates'!$E$10:$Q$13,MATCH($C$8,'B1.1 Current Distribution Rates'!$C$10:$C$13,0),MATCH(C17,'B1.1 Current Distribution Rates'!$E$8:$Q$8,0)) -> 1607.77 | F17: =$E$13 -> 0.0238 | G17: =E17*(1+F17) -> 1646.034926 | H17: =INDEX('B1.2 Billing Determinants'!$E$9:$J$12,MATCH($C$8,'B1.2 Billing Determinants'!$C$9:$C$12,0),MATCH(C17,'B1.2 Billing Determinants'!$E$8:$J$8,0)) -> 3 | I17: =G17*H17*$E$14 -> 59257.25734
C18: =OneDollar -> Bill 32 Rate | D18: $/month | E18: =INDEX('B1.1 Current Distribution Rates'!$E$10:$Q$13,MATCH($C$8,'B1.1 Current Distribution Rates'!$C$10:$C$13,0),MATCH(C18,'B1.1 Current Distribution Rates'!$E$8:$Q$8,0)) -> 1 | F18: 0 | G18: =E18*(1+F18) -> 1 | H18: =H17 -> 3 | I18: =G18*H18*$E$14 -> 36
C19: Tier 1 | D19: cents / m3 | E19: =INDEX('B1.1 Current Distribution Rates'!$E$10:$Q$13,MATCH($C$8,'B1.1 Current Distribution Rates'!$C$10:$C$13,0),MATCH(C19,'B1.1 Current Distribution Rates'!$E$8:$Q$8,0)) -> 0 | F19: 0.0238 | G19: 0 | H19: =INDEX('B1.2 Billing Determinants'!$E$9:$J$12,MATCH($C$8,'B1.2 Billing Determinants'!$C$9:$C$12,0),MATCH(C19,'B1.2 Billing Determinants'!$E$8:$J$8,0)) -> 0 | I19: =G19*H19/100 -> 0
C20: Tier 2 | D20: cents / m3 | E20: =INDEX('B1.1 Current Distribution Rates'!$E$10:$Q$13,MATCH($C$8,'B1.1 Current Distribution Rates'!$C$10:$C$13,0),MATCH(C20,'B1.1 Current Distribution Rates'!$E$8:$Q$8,0)) -> 0 | F20: 0.0238 | G20: 0 | H20: =INDEX('B1.2 Billing Determinants'!$E$9:$J$12,MATCH($C$8,'B1.2 Billing Determinants'!$C$9:$C$12,0),MATCH(C20,'B1.2 Billing Determinants'!$E$8:$J$8,0)) -> 0 | I20: =G20*H20/100 -> 0
C21: Tier 3 | D21: cents / m3 | E21: =INDEX('B1.1 Current Distribution Rates'!$E$10:$Q$13,MATCH($C$8,'B1.1 Current Distribution Rates'!$C$10:$C$13,0),MATCH(C21,'B1.1 Current Distribution Rates'!$E$8:$Q$8,0)) -> 0 | F21: 0.0238 | G21: 0 | H21: =INDEX('B1.2 Billing Determinants'!$E$9:$J$12,MATCH($C$8,'B1.2 Billing Determinants'!$C$9:$C$12,0),MATCH(C21,'B1.2 Billing Determinants'!$E$8:$J$8,0)) -> 0 | I21: =G21*H21/100 -> 0
C22: Contract Demand | D22: Cents/contracted demand m3 | E22: =INDEX('B1.1 Current Distribution Rates'!$E$10:$Q$13,MATCH($C$8,'B1.1 Current Distribution Rates'!$C$10:$C$13,0),MATCH(C22,'B1.1 Current Distribution Rates'!$E$8:$Q$8,0)) -> 109.665 | F22: 0.0238 | G22: 112.275027 | H22: =INDEX('B1.2 Billing Determinants'!$E$9:$J$12,MATCH($C$8,'B1.2 Billing Determinants'!$C$9:$C$12,0),MATCH(C22,'B1.2 Billing Determinants'!$E$8:$J$8,0)) -> 95824 | I22: =G22*H22/100*$E$14 -> 1291037.062
C23: Gas Supply | D23: cents / m3 | E23: =INDEX('B1.1 Current Distribution Rates'!$E$10:$Q$13,MATCH($C$8,'B1.1 Current Distribution Rates'!$C$10:$C$13,0),MATCH(C23,'B1.1 Current Distribution Rates'!$E$8:$Q$8,0)) -> 0 | F23: 0 | G23: 0 | H23: =INDEX('B1.2 Billing Determinants'!$E$9:$J$12,MATCH($C$8,'B1.2 Billing Determinants'!$C$9:$C$12,0),MATCH(C23,'B1.2 Billing Determinants'!$E$8:$J$8,0)) -> 0 | I23: =G23*H23/100 -> 0
C24: Upstream Recovery Charge | D24: Cents/contracted demand m3 | E24: =INDEX('B1.1 Current Distribution Rates'!$E$10:$Q$13,MATCH($C$8,'B1.1 Current Distribution Rates'!$C$10:$C$13,0),MATCH(C24,'B1.1 Current Distribution Rates'!$E$8:$Q$8,0)) -> 14.2434 | F24: 0 | G24: 14.2434 | H24: =H22 -> 95824 | I24: =G24*H24/100*$E$14 -> 163783.1474
C25: Transportation Charge From Dawn | D25: Cents/contracted demand m3 | E25: =INDEX('B1.1 Current Distribution Rates'!$E$10:$Q$13,MATCH($C$8,'B1.1 Current Distribution Rates'!$C$10:$C$13,0),MATCH(C25,'B1.1 Current Distribution Rates'!$E$8:$Q$8,0)) -> 18.2999 | F25: ='D1.1 Rate 1 Adjustment'!$F$25 -> 0 | G25: 18.2999 | H25: =H24 -> 95824 | I25: =G25*H25/100*$E$14 -> 210428.3541
C26: Transportation Charge From Kirkwall | D26: Cents/contracted demand m3 | E26: =INDEX('B1.1 Current Distribution Rates'!$E$10:$Q$13,MATCH($C$8,'B1.1 Current Distribution Rates'!$C$10:$C$13,0),MATCH(C26,'B1.1 Current Distribution Rates'!$E$8:$Q$8,0)) -> 11.848 | F26: ='D1.1 Rate 1 Adjustment'!$F$25 -> 0 | G26: 11.848 | H26: 0 | I26: =G26*H26/100*$E$14 -> 0
C27: Transportation Charge From Parkway | D27: Cents/contracted demand m3 | E27: =INDEX('B1.1 Current Distribution Rates'!$E$10:$Q$13,MATCH($C$8,'B1.1 Current Distribution Rates'!$C$10:$C$13,0),MATCH(C27,'B1.1 Current Distribution Rates'!$E$8:$Q$8,0)) -> 11.848 | F27: ='D1.1 Rate 1 Adjustment'!$F$25 -> 0 | G27: 11.848 | H27: 0 | I27: =G27*H27/100*$E$14 -> 0
C28: Federal Carbon Charge | D28: Cents/contracted demand m3 | E28: =INDEX('B1.1 Current Distribution Rates'!$E$10:$Q$13,MATCH($C$8,'B1.1 Current Distribution Rates'!$C$10:$C$13,0),MATCH(C28,'B1.1 Current Distribution Rates'!$E$8:$Q$8,0)) -> 12.39 | F28: 0 | G28: 12.39 | H28: =H25 -> 95824 | I28: =G28*H28/100*$E$14 -> 142471.1232
I29: =SUM(I17:I28) -> 1867012.945

Sheet E1.1 Proposed Dist Rates
C2: ='A1.1 Distributor Information'!C3 -> Name of LDC: EPCOR Natural Gas Limited Partnership
C3: ='A1.1 Distributor Information'!C4 -> OEB Application Number: EB-2023-0161 Exhibit A - 2024 Custom Incentive Application
C5: Proposed Distribution Tariff Sheet Rates
C6: =MID(CELL("filename",A1),FIND("]",CELL("filename",A1))+1,255) -> E1.1 Proposed Dist Rates
C8: Rate Class | E8: Monthly Base | F8: =OneDollar -> Bill 32 Rate | G8: Tier 1 | H8: Tier 2 | I8: Tier 3 | J8: Contract Demand | K8: Gas Supply | L8: Upstream Recovery Charge | M8: Transportation & Storage Charge | N8: Transportation Charge From Dawn | O8: Transportation Charge From Kirkwall | P8: Transportation Charge From Parkway | Q8: Federal Carbon Charge | R8: Facililty Carbon Charge
E9: $/month | F9: $/month | G9: ₵ / m3 | H9: ₵ / m3 | I9: ₵ / m3 | J9: ₵/contracted m3 | K9: ₵/m3 | L9: (A) | M9: ₵ / m3 | N9: ₵ /contracted m3 | O9: ₵ /contracted m3 | P9: ₵ /contracted m3 | Q9: ₵ / m3 | R9: ₵ / m3
C10: Rate 1 | D10: General Firm Service | E10: =INDEX('D1.1 Rate 1 Adjustment'!$G$17:$G$26,MATCH(E$8,'D1.1 Rate 1 Adjustment'!$C$17:$C$26,0)) -> 27.448078 | F10: =INDEX('D1.1 Rate 1 Adjustment'!$G$17:$G$26,MATCH(F$8,'D1.1 Rate 1 Adjustment'!$C$17:$C$26,0)) -> 1 | G10: =INDEX('D1.1 Rate 1 Adjustment'!$G$17:$G$26,MATCH(G$8,'D1.1 Rate 1 Adjustment'!$C$17:$C$26,0)) -> 29.403536 | H10: =INDEX('D1.1 Rate 1 Adjustment'!$G$17:$G$26,MATCH(H$8,'D1.1 Rate 1 Adjustment'!$C$17:$C$26,0)) -> 28.82426996 | I10: =INDEX('D1.1 Rate 1 Adjustment'!$G$17:$G$26,MATCH(I$8,'D1.1 Rate 1 Adjustment'!$C$17:$C$26,0)) -> 27.97287788 | K10: =INDEX('D1.1 Rate 1 Adjustment'!$G$17:$G$26,MATCH(K$8,'D1.1 Rate 1 Adjustment'!$C$17:$C$26,0)) -> 15.7983 | L10: =INDEX('D1.1 Rate 1 Adjustment'!$G$17:$G$26,MATCH(L$8,'D1.1 Rate 1 Adjustment'!$C$17:$C$26,0)) -> 1.474 | M10: =INDEX('D1.1 Rate 1 Adjustment'!$G$17:$G$26,MATCH(M$8,'D1.1 Rate 1 Adjustment'!$C$17:$C$26,0)) -> 2.6982 | Q10: =INDEX('D1.1 Rate 1 Adjustment'!$G$17:$G$26,MATCH(Q$8,'D1.1 Rate 1 Adjustment'!$C$17:$C$26,0)) -> 12.39 | R10: 0.0011
C11: Rate 6 | D11: Large Volume General Firm Service | E11: =INDEX('D1.2 Rate 6 Adjustment'!$G$17:$G$26,MATCH(E8,'D1.2 Rate 6 Adjustment'!$C$17:$C$26,0)) -> 111.932054 | F11: =INDEX('D1.2 Rate 6 Adjustment'!$G$17:$G$26,MATCH(F8,'D1.2 Rate 6 Adjustment'!$C$17:$C$26,0)) -> 1 | G11: =INDEX('D1.2 Rate 6 Adjustment'!$G$17:$G$26,MATCH(G8,'D1.2 Rate 6 Adjustment'!$C$17:$C$26,0)) -> 27.12547862 | H11: =INDEX('D1.2 Rate 6 Adjustment'!$G$17:$G$26,MATCH(H8,'D1.2 Rate 6 Adjustment'!$C$17:$C$26,0)) -> 24.4130229 | I11: =INDEX('D1.2 Rate 6 Adjustment'!$G$17:$G$26,MATCH(I8,'D1.2 Rate 6 Adjustment'!$C$17:$C$26,0)) -> 23.1921414 | K11: =INDEX('D1.2 Rate 6 Adjustment'!$G$17:$G$26,MATCH(K8,'D1.2 Rate 6 Adjustment'!$C$17:$C$26,0)) -> 15.7983 | L11: =INDEX('D1.2 Rate 6 Adjustment'!$G$17:$G$26,MATCH(L8,'D1.2 Rate 6 Adjustment'!$C$17:$C$26,0)) -> 2.92 | M11: =INDEX('D1.2 Rate 6 Adjustment'!$G$17:$G$26,MATCH(M8,'D1.2 Rate 6 Adjustment'!$C$17:$C$26,0)) -> 5.6413 | Q11: =INDEX('D1.2 Rate 6 Adjustment'!$G$17:$G$26,MATCH(Q8,'D1.2 Rate 6 Adjustment'!$C$17:$C$26,0)) -> 12.39 | R11: 0.0011
C12: Rate 11 | D12: Large Volume Seasonal Service | E12: =INDEX('D1.3 Rate 11 Adjustment'!$G$17:$G$26,MATCH(E8,'D1.3 Rate 11 Adjustment'!$C$17:$C$26,0)) -> 223.864108 | F12: =INDEX('D1.3 Rate 11 Adjustment'!$G$17:$G$26,MATCH(F8,'D1.3 Rate 11 Adjustment'!$C$17:$C$26,0)) -> 1 | G12: =INDEX('D1.3 Rate 11 Adjustment'!$G$17:$G$26,MATCH(G8,'D1.3 Rate 11 Adjustment'!$C$17:$C$26,0)) -> 16.84949564 | H12: =INDEX('D1.3 Rate 11 Adjustment'!$G$17:$G$26,MATCH(H8,'D1.3 Rate 11 Adjustment'!$C$17:$C$26,0)) -> 16.84949564 | I12: =INDEX('D1.3 Rate 11 Adjustment'!$G$17:$G$26,MATCH(I8,'D1.3 Rate 11 Adjustment'!$C$17:$C$26,0)) -> 16.84949564 | K12: =INDEX('D1.3 Rate 11 Adjustment'!$G$17:$G$26,MATCH(K8,'D1.3 Rate 11 Adjustment'!$C$17:$C$26,0)) -> 15.7983 | L12: =INDEX('D1.3 Rate 11 Adjustment'!$G$17:$G$26,MATCH(L8,'D1.3 Rate 11 Adjustment'!$C$17:$C$26,0)) -> 0.0352 | M12: =INDEX('D1.3 Rate 11 Adjustment'!$G$17:$G$26,MATCH(M8,'D1.3 Rate 11 Adjustment'!$C$17:$C$26,0)) -> 1.8166 | Q12: =INDEX('D1.3 Rate 11 Adjustment'!$G$17:$G$26,MATCH(Q8,'D1.3 Rate 11 Adjustment'!$C$17:$C$26,0)) -> 12.39 | R12: 0.0011
C13: Rate 16 | D13: Contracted Firm Service | E13: =INDEX('D1.4 Rate 16 Adjustment'!$G$17:$G$28,MATCH(E8,'D1.4 Rate 16 Adjustment'!$C$17:$C$28,0)) -> 1646.034926 | F13: =INDEX('D1.4 Rate 16 Adjustment'!$G$17:$G$28,MATCH(F8,'D1.4 Rate 16 Adjustment'!$C$17:$C$28,0)) -> 1 | J13: =INDEX('D1.4 Rate 16 Adjustment'!$G$17:$G$28,MATCH(J8,'D1.4 Rate 16 Adjustment'!$C$17:$C$28,0)) -> 112.275027 | L13: =INDEX('D1.4 Rate 16 Adjustment'!$G$17:$G$28,MATCH(L8,'D1.4 Rate 16 Adjustment'!$C$17:$C$28,0)) -> 14.2434 | N13: ='D1.4 Rate 16 Adjustment'!G25 -> 18.2999 | O13: =INDEX('D1.4 Rate 16 Adjustment'!$G$17:$G$28,MATCH(O8,'D1.4 Rate 16 Adjustment'!$C$17:$C$28,0)) -> 11.848 | P13: =INDEX('D1.4 Rate 16 Adjustment'!$G$17:$G$28,MATCH(P8,'D1.4 Rate 16 Adjustment'!$C$17:$C$28,0)) -> 11.848 | Q13: =INDEX('D1.4 Rate 16 Adjustment'!$G$17:$G$28,MATCH(Q8,'D1.4 Rate 16 Adjustment'!$C$17:$C$28,0)) -> 12.39 | R13: 0.0011
C14: (A) Rates 1, 6, and 11 all charged on cents / m3 basis. Rate 16 billed on cents / m3 of contracted demand basis

Sheet E1.2 Billing Determinants
C2: ='A1.1 Distributor Information'!C3 -> Name of LDC: EPCOR Natural Gas Limited Partnership
C3: ='A1.1 Distributor Information'!C4 -> OEB Application Number: EB-2023-0161 Exhibit A - 2024 Custom Incentive Application
C5: Billing Determinants
C6: =MID(CELL("filename",A1),FIND("]",CELL("filename",A1))+1,255) -> E1.2 Billing Determinants
C9: Rate Class | D9: Description | E9: Base | F9: Tier 1 | G9: Tier 2 | H9: Tier 3 | I9: Firm Demand | J9: Gas Supply
E10: cx's | F10: m3 | G10: m3 | H10: m3 | I10: Contracted m3 | J10: m3
C11: Rate 1 | D11: General Firm Service | E11: 5606 | F11: 4790547 | G11: 3231919 | H11: 272765 | J11: 8295231
C12: Rate 6 | D12: Large Volume General Firm Service | E12: 33 | F12: 320072 | G12: 845750 | H12: 1032696 | J12: 2198518
C13: Rate 11 | D13: Large Volume Seasonal Service | E13: 7 | H13: 1386497 | J13: 1386497
C14: Rate 16 | D14: Contracted Firm Service | E14: 3 | I14: 95824 | J14: 0

Sheet E1.3 Proposed Rev From Rate
C2: ='A1.1 Distributor Information'!C3 -> Name of LDC: EPCOR Natural Gas Limited Partnership
C3: ='A1.1 Distributor Information'!C4 -> OEB Application Number: EB-2023-0161 Exhibit A - 2024 Custom Incentive Application
C5: Proposed Revenue from Rates
C7: Months / Year | D7: 12
C9: Rate Class | E9: Monthly Base | F9: =OneDollar -> Bill 32 Rate | G9: Tier 1 | H9: Tier 2 | I9: Tier 3 | J9: Contracted Demand | K9: Gas Supply | L9: Upstream Recovery Charge | M9: Transportation & Storage Charge | N9: Federal Carbon Charge | O9: Total
M10: (A)
C11: Rate 1 | D11: General Firm Service | E11: ='E1.1 Proposed Dist Rates '!E10*'E1.2 Billing Determinants'!E11*$D$7 -> 1846487.103 | F11: ='E1.1 Proposed Dist Rates '!F10*'E1.2 Billing Determinants'!E11*$D$7 -> 67272 | G11: ='E1.1 Proposed Dist Rates '!G10*'E1.2 Billing Determinants'!F11/100 -> 1408590.212 | H11: ='E1.1 Proposed Dist Rates '!H10*'E1.2 Billing Determinants'!G11/100 -> 931577.0574 | I11: ='E1.1 Proposed Dist Rates '!I10*'E1.2 Billing Determinants'!H11/100 -> 76300.22035 | J11: ='E1.1 Proposed Dist Rates '!J10*'E1.2 Billing Determinants'!I11/100*$D$7 -> 0 | K11: ='E1.1 Proposed Dist Rates '!K10*'E1.2 Billing Determinants'!J11/100 -> 1310505.479 | L11: ='E1.1 Proposed Dist Rates '!L10*'E1.2 Billing Determinants'!$J11/100 -> 122271.7049 | M11: ='E1.1 Proposed Dist Rates '!M10*'E1.2 Billing Determinants'!$J11/100 -> 223821.9228 | N11: ='E1.1 Proposed Dist Rates '!Q10*'E1.2 Billing Determinants'!J11/100 -> 1027779.121 | O11: =SUM(E11:N11) -> 7014604.821
C12: Rate 6 | D12: Large Volume General Firm Service | E12: ='E1.1 Proposed Dist Rates '!E11*'E1.2 Billing Determinants'!E12*$D$7 -> 44325.09338 | F12: ='E1.1 Proposed Dist Rates '!F11*'E1.2 Billing Determinants'!E12*$D$7 -> 396 | G12: ='E1.1 Proposed Dist Rates '!G11*'E1.2 Billing Determinants'!F12/100 -> 86821.06193 | H12: ='E1.1 Proposed Dist Rates '!H11*'E1.2 Billing Determinants'!G12/100 -> 206473.1412 | I12: ='E1.1 Proposed Dist Rates '!I11*'E1.2 Billing Determinants'!H12/100 -> 239504.3166 | J12: ='E1.1 Proposed Dist Rates '!J11*'E1.2 Billing Determinants'!I12/100*$D$7 -> 0 | K12: ='E1.1 Proposed Dist Rates '!K11*'E1.2 Billing Determinants'!J12/100 -> 347328.4692 | L12: ='E1.1 Proposed Dist Rates '!L11*'E1.2 Billing Determinants'!$J12/100 -> 64196.7256 | M12: ='E1.1 Proposed Dist Rates '!M11*'E1.2 Billing Determinants'!$J12/100 -> 124024.9959 | N12: ='E1.1 Proposed Dist Rates '!Q11*'E1.2 Billing Determinants'!J12/100 -> 272396.3802 | O12: =SUM(E12:N12) -> 1385466.184
C13: Rate 11 | D13: Large Volume Seasonal Service | E13: ='E1.1 Proposed Dist Rates '!E12*'E1.2 Billing Determinants'!E13*$D$7 -> 18804.58507 | F13: ='E1.1 Proposed Dist Rates '!F12*'E1.2 Billing Determinants'!E13*$D$7 -> 84 | G13: ='E1.1 Proposed Dist Rates '!G12*'E1.2 Billing Determinants'!F13/100 -> 0 | H13: ='E1.1 Proposed Dist Rates '!H12*'E1.2 Billing Determinants'!G13/100 -> 0 | I13: ='E1.1 Proposed Dist Rates '!I12*'E1.2 Billing Determinants'!H13/100 -> 233617.7516 | J13: ='E1.1 Proposed Dist Rates '!J12*'E1.2 Billing Determinants'!I13/100*$D$7 -> 0 | K13: ='E1.1 Proposed Dist Rates '!K12*'E1.2 Billing Determinants'!J13/100 -> 219042.9556 | L13: ='E1.1 Proposed Dist Rates '!L12*'E1.2 Billing Determinants'!$J13/100 -> 488.046944 | M13: ='E1.1 Proposed Dist Rates '!M12*'E1.2 Billing Determinants'!$J13/100 -> 25187.1045 | N13: ='E1.1 Proposed Dist Rates '!Q12*'E1.2 Billing Determinants'!J13/100 -> 171786.9783 | O13: =SUM(E13:N13) -> 669011.4219
C14: Rate 16 | D14: Contracted Firm Service | E14: ='E1.1 Proposed Dist Rates '!E13*'E1.2 Billing Determinants'!E14*$D$7 -> 59257.25734 | F14: ='E1.1 Proposed Dist Rates '!F13*'E1.2 Billing Determinants'!E14*$D$7 -> 36 | G14: ='E1.1 Proposed Dist Rates '!G13*'E1.2 Billing Determinants'!F14/100 -> 0 | H14: ='E1.1 Proposed Dist Rates '!H13*'E1.2 Billing Determinants'!G14/100 -> 0 | I14: ='E1.1 Proposed Dist Rates '!I13*'E1.2 Billing Determinants'!H14/100 -> 0 | J14: ='E1.1 Proposed Dist Rates '!J13*'E1.2 Billing Determinants'!I14/100*$D$7 -> 1291037.062 | K14: ='E1.1 Proposed Dist Rates '!K13*'E1.2 Billing Determinants'!J14/100 -> 0 | L14: ='E1.1 Proposed Dist Rates '!L13*'E1.2 Billing Determinants'!$I14/100*$D$7 -> 163783.1474 | M14: ='E1.1 Proposed Dist Rates '!N13*'E1.2 Billing Determinants'!$I14/100*$D$7 -> 210428.3541 | N14: ='E1.1 Proposed Dist Rates '!Q13*'E1.2 Billing Determinants'!I14/100*$D$7 -> 142471.1232 | O14: =SUM(E14:N14) -> 1867012.945
C15: (A) Transportation & Storage for Rates 1, 6, and 11. Transportation only (no seasonal storage) for Rate 16 from Dawn. | N15: Proposed Revenue | O15: =SUM(O11:O14) -> 10936095.37
N16: Current Revenue | O16: ='B1.3 Current Rev From Rates'!O18 -> 10786321.47
N17: Change | O17: =O15-O16 -> 149773.8989
N18: % Change | O18: =O17/O16 -> 0.01388554006

Sheet F1.3 Proposed Rate Riders
C2: ='A1.1 Distributor Information'!C3 -> Name of LDC: EPCOR Natural Gas Limited Partnership
C3: ='A1.1 Distributor Information'!C4 -> OEB Application Number: EB-2023-0161 Exhibit A - 2024 Custom Incentive Application
C4: F1.3 Rate Riders
C6: Delay in Revenue Recovery Rate Rider
E7: Delay in Revenue Recovery Rate Rider
C9: Rate 1 | General Firm Service | E9: 1.633 | F9: Cents/m3
C10: Rate 6 | Large Volume General Firm Service | E10: 0.909 | F10: Cents/m3
C11: Rate 11 | Large Volume Seasonal Service | E11: 0.5524 | F11: Cents/m3
C12: Rate 16 | Contracted Firm Service | E12: 0.0601 | F12: Cents/contracted demand m3/month
C15: Energy Content Variance Account (ECVA)
E16: ECVA Rate Rider
C18: Rate 1 | General Firm Service | E18: 0.1725 | F18: Cents/m3
C19: Rate 6 | Large Volume General Firm Service | E19: 0.1903 | F19: Cents/m3
C20: Rate 11 | Large Volume Seasonal Service | E20: 0.1425 | F20: Cents/m3
C21: Rate 16 | Contracted Firm Service | E21: 0 | F21: Cents/contracted demand m3
C24: Contribution in Aid of Construction Variance Account (CIACVA)
E25: CIACVA Rate Rider
C27: Rate 1 | General Firm Service | E27: 2.329893595 | F27: Cents/m3
C28: Rate 6 | Large Volume General Firm Service | E28: 3.125450894 | F28: Cents/m3
C29: Rate 11 | Large Volume Seasonal Service | E29: 0.6051211267 | F29: Cents/m3
C30: Rate 16 | Contracted Firm Service | E30: 4.766349443 | F30: Cents/contracted demand m3/month
C33: Municipal Tax Variance Account (MTVA)
E34: MTVA Rate Rider
C36: Rate 1 | General Firm Service | E36: -2.2878 | F36: Cents/m3
C37: Rate 6 | Large Volume General Firm Service | E37: -3.9827 | F37: Cents/m3
C38: Rate 11 | Large Volume Seasonal Service | E38: -0.773 | F38: Cents/m3
C39: Rate 16 | Contracted Firm Service | E39: -5.6311 | F39: Cents/contracted demand m3/month
C42: Other Revenue Deferral Account (ORDA)
E43: ORDA Rate Rider
C45: Rate 1 | General Firm Service | E45: -0.07202608885 | F45: Cents/m3
C46: Rate 6 | Large Volume General Firm Service | E46: -0.09661986464 | F46: Cents/m3
C47: Rate 11 | Large Volume Seasonal Service | E47: -0.01870665172 | F47: Cents/m3
C48: Rate 16 | Contracted Firm Service | E48: -0.1473464321 | F48: Cents/contracted demand m3/month
C54: Rate 1 | General Firm Service | F54: Cents/m3
C55: Rate 6 | Large Volume General Firm Service | F55: Cents/m3
C56: Rate 11 | Large Volume Seasonal Service | F56: Cents/m3
C57: Rate 16 | Contracted Firm Service | F57: Cents/contracted demand m3/month

Sheet G1.1 Rate 1 Bill Impact
C2: ='A1.1 Distributor Information'!C3 -> Name of LDC: EPCOR Natural Gas Limited Partnership
C3: ='A1.1 Distributor Information'!C4 -> OEB Application Number: EB-2023-0161 Exhibit A - 2024 Custom Incentive Application
C5: Rate 1 Delivery Bill Impact
C6: G1.1 Rate 1 Bill Impact
C8: Rate 1
C10: Rate 1 - Existing Residential | E10: Units | F10: Current Rate | H10: Proposed Rate
C12: Customer | E12: $/month | F12: =INDEX('B1.1 Current Distribution Rates'!$E$10:$Q$13,MATCH($C$8,'B1.1 Current Distribution Rates'!$C$10:$C$13,0),COUNTA('G1.1 Rate 1 Bill Impact'!$C$12:C12)) -> 26.81 | H12: =INDEX('E1.1 Proposed Dist Rates '!$E$10:$Q$13,MATCH($C$8,'E1.1 Proposed Dist Rates '!$C$10:$C$13,0),COUNTA($C$12:C12)) -> 27.448078
C13: =OneDollar -> Bill 32 Rate | E13: $/month | F13: =INDEX('B1.1 Current Distribution Rates'!$E$10:$Q$13,MATCH($C$8,'B1.1 Current Distribution Rates'!$C$10:$C$13,0),COUNTA('G1.1 Rate 1 Bill Impact'!$C$12:C13)) -> 1 | H13: =INDEX('E1.1 Proposed Dist Rates '!$E$10:$Q$13,MATCH($C$8,'E1.1 Proposed Dist Rates '!$C$10:$C$13,0),COUNTA($C$12:C13)) -> 1
C14: First 100 m3 | E14: ₵/m3 | F14: =INDEX('B1.1 Current Distribution Rates'!$E$10:$Q$13,MATCH($C$8,'B1.1 Current Distribution Rates'!$C$10:$C$13,0),COUNTA('G1.1 Rate 1 Bill Impact'!$C$12:C14)) -> 28.72 | H14: =INDEX('E1.1 Proposed Dist Rates '!$E$10:$Q$13,MATCH($C$8,'E1.1 Proposed Dist Rates '!$C$10:$C$13,0),COUNTA($C$12:C14)) -> 29.403536
C15: Next 400 m3 | E15: ₵/m3 | F15: =INDEX('B1.1 Current Distribution Rates'!$E$10:$Q$13,MATCH($C$8,'B1.1 Current Distribution Rates'!$C$10:$C$13,0),COUNTA('G1.1 Rate 1 Bill Impact'!$C$12:C15)) -> 28.1542 | H15: =INDEX('E1.1 Proposed Dist Rates '!$E$10:$Q$13,MATCH($C$8,'E1.1 Proposed Dist Rates '!$C$10:$C$13,0),COUNTA($C$12:C15)) -> 28.82426996
C16: GT 500m3 | E16: ₵/m3 | F16: =INDEX('B1.1 Current Distribution Rates'!$E$10:$Q$13,MATCH($C$8,'B1.1 Current Distribution Rates'!$C$10:$C$13,0),COUNTA('G1.1 Rate 1 Bill Impact'!$C$12:C16)) -> 27.3226 | H16: =INDEX('E1.1 Proposed Dist Rates '!$E$10:$Q$13,MATCH($C$8,'E1.1 Proposed Dist Rates '!$C$10:$C$13,0),COUNTA($C$12:C16)) -> 27.97287788
C17: Contracted Demand | E17: ₵ / contracted m3 | F17: =INDEX('B1.1 Current Distribution Rates'!$E$10:$Q$13,MATCH($C$8,'B1.1 Current Distribution Rates'!$C$10:$C$13,0),COUNTA('G1.1 Rate 1 Bill Impact'!$C$12:C17)) -> 0 | H17: =INDEX('E1.1 Proposed Dist Rates '!$E$10:$Q$13,MATCH($C$8,'E1.1 Proposed Dist Rates '!$C$10:$C$13,0),COUNTA($C$12:C17)) -> 0
C18: Gas Supply | E18: ₵/m3 | F18: =INDEX('B1.1 Current Distribution Rates'!$E$10:$Q$13,MATCH($C$8,'B1.1 Current Distribution Rates'!$C$10:$C$13,0),COUNTA('G1.1 Rate 1 Bill Impact'!$C$12:C18)) -> 15.7983 | H18: =INDEX('E1.1 Proposed Dist Rates '!$E$10:$Q$13,MATCH($C$8,'E1.1 Proposed Dist Rates '!$C$10:$C$13,0),COUNTA($C$12:C18)) -> 15.7983
C19: Upstream Recovery Charge | E19: $/m3 | F19: =INDEX('B1.1 Current Distribution Rates'!$E$10:$Q$13,MATCH($C$8,'B1.1 Current Distribution Rates'!$C$10:$C$13,0),COUNTA('G1.1 Rate 1 Bill Impact'!$C$12:C19)) -> 1.474 | H19: =INDEX('E1.1 Proposed Dist Rates '!$E$10:$Q$13,MATCH($C$8,'E1.1 Proposed Dist Rates '!$C$10:$C$13,0),COUNTA($C$12:C19)) -> 1.474
C20: Transportation & Storage Charge | E20: ₵/m3 | F20: =INDEX('B1.1 Current Distribution Rates'!$E$10:$Q$13,MATCH($C$8,'B1.1 Current Distribution Rates'!$C$10:$C$13,0),COUNTA('G1.1 Rate 1 Bill Impact'!$C$12:C20)) -> 2.6982 | H20: =INDEX('E1.1 Proposed Dist Rates '!$E$10:$Q$13,MATCH($C$8,'E1.1 Proposed Dist Rates '!$C$10:$C$13,0),COUNTA($C$12:C20)) -> 2.6982
C21: Federal Carbon Charge | E21: ₵/m3 | F21: ='B1.1 Current Distribution Rates'!Q10 -> 12.39 | H21: ='E1.1 Proposed Dist Rates '!Q10 -> 12.39
C23: Rate Riders
C24: Delay in Revenue Recovery Rate Rider | E24: ₵/m3 | F24: ='C1.1 Current Rate Riders'!$E$10 -> 1.633 | H24: ='F1.3 Proposed Rate Riders'!$E$9 -> 1.633
C25: ='F1.3 Proposed Rate Riders'!$E$16 -> ECVA Rate Rider | E25: ₵/m3 | F25: ='C1.1 Current Rate Riders'!$E$19 -> 0.3437 | H25: ='F1.3 Proposed Rate Riders'!$E$18 -> 0.1725
C26: ='F1.3 Proposed Rate Riders'!$E$25 -> CIACVA Rate Rider | E26: ₵/m3 | F26: ='C1.1 Current Rate Riders'!$E$28 -> 3.3388 | H26: ='F1.3 Proposed Rate Riders'!$E$27 -> 2.329893595
C27: ='F1.3 Proposed Rate Riders'!$E$34 -> MTVA Rate Rider | E27: ₵/m3 | F27: ='C1.1 Current Rate Riders'!$E$37 -> -2.7906 | H27: ='F1.3 Proposed Rate Riders'!$E$36 -> -2.2878
C28: ='F1.3 Proposed Rate Riders'!$E$43 -> ORDA Rate Rider | E28: ₵/m3 | F28: 0 | H28: ='F1.3 Proposed Rate Riders'!$E$45 -> -0.07202608885
C29: ='F1.3 Proposed Rate Riders'!$E$52 -> 0 | E29: ₵/m3 | F29: 0 | H29: ='F1.3 Proposed Rate Riders'!$E$54 -> 0
C31: Delivery | E31: Metric | F31: Current Rate | H31: Proposed Rate | J31: Change $ | L31: Change %
C32: Customer | E32: 12 | F32: =F12*$E32 -> 321.72 | H32: =H12*$E32 -> 329.376936 | J32: =H32-F32 -> 7.656936 | L32: =J32/F32 -> 0.0238
C33: =OneDollar -> Bill 32 Rate | E33: 12 | F33: =F13*$E33 -> 12 | H33: =H13*$E33 -> 12 | J33: =H33-F33 -> 0 | L33: =J33/F33 -> 0
C34: First 100 m3 | E34: 1001.316053 | F34: =F14*$E34/100 -> 287.5779704 | H34: =H14*$E34/100 -> 294.422326 | J34: =H34-F34 -> 6.844355694 | L34: =J34/F34 -> 0.0238
C35: Next 400 m3 | E35: 1147.683947 | F35: 323.1212339 | H35: 330.8115192 | J35: 7.690285366 | L35: 0.0238
C36: GT 500m3 | E36: 0 | F36: 0 | H36: 0 | J36: 0
C37: Contracted Demand | E37: 0 | F37: 0 | H37: 0 | J37: 0
C38: Gas Supply | E38: =SUM(E34:E37) -> 2149 | F38: 339.505467 | H38: 339.505467 | J38: 0 | L38: 0
C39: Upstream Recovery Charge | E39: =E38 -> 2149 | F39: 31.67626 | H39: 31.67626 | J39: 0 | L39: 0
C40: Transportation & Storage Charge | E40: =E39 -> 2149 | F40: 57.984318 | H40: 57.984318 | J40: 0 | L40: 0
C41: Federal Carbon Charge | E41: =E38 -> 2149 | F41: 266.2611 | H41: 266.2611 | J41: 0 | L41: 0
C42: Total Delivery | F42: =SUM(F32:F41) -> 1639.846349 | H42: =SUM(H32:H41) -> 1662.037926 | J42: =SUM(J32:J41) -> 22.19157706 | L42: =J42/F42 -> 0.0135327173
C44: Rate Riders | E44: Metric | F44: Current Rate | H44: Proposed Rate | J44: Change $ | L44: Change %
C45: =C24 -> Delay in Revenue Recovery Rate Rider | E45: =E38 -> 2149 | F45: =$E45*F24/100 -> 35.09317 | H45: =$E45*H24/100 -> 35.09317 | J45: =H45-F45 -> 0 | L45: =J45/F45 -> 0
C46: =C25 -> ECVA Rate Rider | E46: =E45 -> 2149 | F46: =$E46*F25/100 -> 7.386113 | H46: =$E46*H25/100 -> 3.707025 | J46: =H46-F46 -> -3.679088 | L46: =J46/F46 -> -0.4981088158
C47: CIACVA Rate Rider | E47: =E45 -> 2149 | F47: 71.750812 | H47: =$E47*H26/100 -> 50.06941336 | J47: =H47-F47 -> -21.68139864 | L47: =J47/F47 -> -0.3021763522
C48: MTVA Rate Rider | E48: =E46 -> 2149 | F48: -59.969994 | H48: =$E48*H27/100 -> -49.164822 | J48: 10.805172 | L48: -0.1801763062
C49: ORDA Rate Rider | E49: =E47 -> 2149 | F49: 0 | H49: =$E49*H28/100 -> -1.547840649 | J49: =H49-F49 -> -1.547840649 | L49: =J49/F49 -> 
C50: 0 | E50: 2149 | F50: 0 | H50: =$E50*H29/100 -> 0 | J50: 0
C51: Total Rate Riders | F51: =SUM(F45:F50) -> 54.260101 | H51: =SUM(H45:H50) -> 38.15694571 | J51: =SUM(J45:J50) -> -16.10315529 | L51: =J51/F51 -> -0.2967770976
C53: Total Bill Impact | F53: =F42+F51 -> 1694.10645 | H53: =H42+H51 -> 1700.194872 | J53: =J42+J51 -> 6.088421771 | L53: =J53/F53 -> 0.003593883826
C56: Rate 1 - New Residential | E56: Units | F56: Current Rate | H56: Proposed Rate
C58: Customer | E58: $/month | F58: =F12 -> 26.81 | H58: =H12 -> 27.448078
C59: =OneDollar -> Bill 32 Rate | E59: $/month | F59: 1 | H59: 1
C60: First 100 m3 | E60: ₵/m3 | F60: 28.72 | H60: 29.403536
C61: Next 400 m3 | E61: ₵/m3 | F61: 28.1542 | H61: 28.82426996
C62: GT 500m3 | E62: ₵/m3 | F62: 27.3226 | H62: 27.97287788
C63: Contracted Demand | E63: ₵ / contracted m3 | F63: 0 | H63: 0
C64: Gas Supply | E64: ₵/m3 | F64: 15.7983 | H64: 15.7983
C65: Upstream Recovery Charge | E65: ₵/m3 | F65: 1.474 | H65: 1.474
C66: Transportation & Storage Charge | E66: ₵/m3 | F66: 2.6982 | H66: 2.6982
C67: Federal Carbon Charge | E67: ₵/m3 | F67: 12.39 | H67: 12.39
C69: Rate Riders
C70: =C24 -> Delay in Revenue Recovery Rate Rider | E70: ₵/m3 | F70: =F24 -> 1.633 | H70: =H24 -> 1.633
C71: =C25 -> ECVA Rate Rider | E71: ₵/m3 | F71: =F25 -> 0.3437 | H71: =H25 -> 0.1725
C72: CIACVA Rate Rider | E72: ₵/m3 | F72: 3.3388 | H72: 2.329893595
C73: MTVA Rate Rider | E73: ₵/m3 | F73: -2.7906 | H73: -2.2878
C74: ORDA Rate Rider | E74: ₵/m3 | F74: 0 | H74: -0.07202608885
C75: 0 | E75: ₵/m3 | F75: 0 | H75: 0
C77: Delivery | E77: Metric | F77: Current Rate | H77: Proposed Rate | J77: Change $ | L77: Change %
C78: Customer | E78: 12 | F78: =F58*$E78 -> 321.72 | H78: =H58*$E78 -> 329.376936 | J78: =H78-F78 -> 7.656936 | L78: =J78/F78 -> 0.0238
C79: =OneDollar -> Bill 32 Rate | E79: =E78 -> 12 | F79: =F59*$E79 -> 12 | H79: =H59*$E79 -> 12 | J79: =H79-F79 -> 0 | L79: =J79/F79 -> 0
C80: First 100 m3 | E80: 993.1296044 | F80: =F60*$E80/100 -> 285.2268224 | H80: =H60*$E80/100 -> 292.0152207 | J80: =H80-F80 -> 6.788398372 | L80: =J80/F80 -> 0.0238
C81: Next 400 m3 | E81: 1072.870396 | F81: 302.0580769 | H81: 309.2470592 | J81: 7.188982231 | L81: 0.0238
C82: GT 500m3 | E82: 0 | F82: 0 | H82: 0 | J82: 0
C83: Contracted Demand | E83: 0 | F83: 0 | H83: 0 | J83: 0
C84: Gas Supply | E84: =SUM(E80:E83) -> 2066 | F84: 326.392878 | H84: 326.392878 | J84: 0 | L84: 0
C85: Upstream Recovery Charge | E85: =E84 -> 2066 | F85: 30.45284 | H85: 30.45284 | J85: 0 | L85: 0
C86: Transportation & Storage Charge | E86: =E85 -> 2066 | F86: 55.744812 | H86: 55.744812 | J86: 0 | L86: 0
C87: Federal Carbon Charge | E87: =E84 -> 2066 | F87: 255.9774 | H87: 255.9774 | J87: 0 | L87: 0
C88: Total Delivery | F88: =SUM(F78:F87) -> 1589.572829 | H88: =SUM(H78:H87) -> 1611.207146 | J88: =SUM(J78:J87) -> 21.6343166 | L88: =J88/F88 -> 0.01361014494
C90: Rate Riders | E90: Metric | F90: Current Rate | H90: Proposed Rate | J90: Change $ | L90: Change %
C91: =C70 -> Delay in Revenue Recovery Rate Rider | E91: =E84 -> 2066 | F91: =$E91*F70/100 -> 33.73778 | H91: =$E91*H70/100 -> 33.73778 | J91: =H91-F91 -> 0 | L91: =J91/F91 -> 0
C92: =C71 -> ECVA Rate Rider | E92: =E91 -> 2066 | F92: =$E92*F71/100 -> 7.100842 | H92: =$E92*H71/100 -> 3.56385 | J92: =H92-F92 -> -3.536992 | L92: =J92/F92 -> -0.4981088158
C93: CIACVA Rate Rider | E93: =E91 -> 2066 | F93: 68.979608 | H93: 48.13560168 | J93: -20.84400632 | L93: -0.3021763522
C94: MTVA Rate Rider | E94: =E92 -> 2066 | F94: -57.653796 | H94: -47.265948 | J94: 10.387848 | L94: -0.1801763062
C95: ORDA Rate Rider | F95: 0 | H95: 0 | J95: 0
C96: 0 | E96: =E94 -> 2066 | F96: 0 | H96: 0 | J96: 0
C97: Total Rate Riders | F97: =SUM(F91:F96) -> 52.164434 | H97: =SUM(H91:H96) -> 38.17128368 | J97: =SUM(J91:J96) -> -13.99315032 | L97: =J97/F97 -> -0.2682507841
C99: Total Bill Impact | F99: =F88+F97 -> 1641.737263 | H99: =H88+H97 -> 1649.37843 | J99: =J88+J97 -> 7.641166279 | L99: =J99/F99 -> 0.004654317381
C101: Rate 1 - Small Commercial | E101: Units | F101: Current Rate | H101: Proposed Rate
C103: Customer | E103: $/month | F103: =F58 -> 26.81 | H103: =H58 -> 27.448078
C104: =OneDollar -> Bill 32 Rate | E104: $/month | F104: 1 | H104: 1
C105: First 100 m3 | E105: ₵/m3 | F105: 28.72 | H105: 29.403536
C106: Next 400 m3 | E106: ₵/m3 | F106: 28.1542 | H106: 28.82426996
C107: GT 500m3 | E107: ₵/m3 | F107: 27.3226 | H107: 27.97287788
C108: Contracted Demand | E108: ₵ / contracted m3 | F108: 0 | H108: 0
C109: Gas Supply | E109: ₵/m3 | F109: 15.7983 | H109: 15.7983
C110: Upstream Recovery Charge | E110: ₵/m3 | F110: 1.474 | H110: 1.474
C111: Transportation & Storage Charge | E111: ₵/m3 | F111: 2.6982 | H111: 2.6982
C112: Federal Carbon Charge | E112: ₵/m3 | F112: 12.39 | H112: 12.39
C114: Rate Riders
C115: =C70 -> Delay in Revenue Recovery Rate Rider | E115: ₵/m3 | F115: =F70 -> 1.633 | H115: =H70 -> 1.633
C116: =C71 -> ECVA Rate Rider | E116: ₵/m3 | F116: =F71 -> 0.3437 | H116: =H71 -> 0.1725
C117: CIACVA Rate Rider | E117: ₵/m3 | F117: 3.3388 | H117: 2.329893595
C118: MTVA Rate Rider | E118: ₵/m3 | F118: -2.7906 | H118: -2.2878
C119: ORDA Rate Rider | E119: ₵/m3 | F119: 0 | H119: -0.07202608885
C120: 0 | E120: ₵/m3 | F120: 0 | H120: 0
C122: Delivery | E122: Metric | F122: Current Rate | H122: Proposed Rate | J122: Change $ | L122: Change %
C123: Customer | E123: 12 | F123: =F103*$E123 -> 321.72 | H123: =H103*$E123 -> 329.376936 | J123: =H123-F123 -> 7.656936 | L123: =J123/F123 -> 0.0238
C124: =OneDollar -> Bill 32 Rate | E124: =E123 -> 12 | F124: =F104*$E124 -> 12 | H124: =H104*$E124 -> 12 | J124: =H124-F124 -> 0 | L124: =J124/F124 -> 0
C125: First 100 m3 | E125: 1198.170987 | F125: =F105*$E125/100 -> 344.1147074 | H125: =H105*$E125/100 -> 352.3046374 | J125: =H125-F125 -> 8.189930036 | L125: =J125/F125 -> 0.0238
C126: Next 400 m3 | E126: 2475.004093 | F126: 696.8176023 | H126: 713.4018612 | J126: 16.58425893 | L126: 0.0238
C127: GT 500m3 | E127: 1019.82492 | F127: 278.6426837 | H127: 285.2743796 | J127: 6.631695872 | L127: 0.0238
C128: Contracted Demand | E128: 0 | F128: 0 | H128: 0 | J128: 0
C129: Gas Supply | E129: =SUM(E125:E128) -> 4693 | F129: 741.414219 | H129: 741.414219 | J129: 0 | L129: 0
C130: Upstream Recovery Charge | E130: =E129 -> 4693 | F130: 69.17482 | H130: 69.17482 | J130: 0 | L130: 0
C131: Transportation & Storage Charge | E131: =E130 -> 4693 | F131: 126.626526 | H131: 126.626526 | J131: 0 | L131: 0
C132: Federal Carbon Charge | E132: =E129 -> 4693 | F132: 581.4627 | H132: 581.4627 | J132: 0 | L132: 0
C133: Total Delivery | F133: =SUM(F123:F132) -> 3171.973258 | H133: =SUM(H123:H132) -> 3211.036079 | J133: =SUM(J123:J132) -> 39.06282084 | L133: =J133/F133 -> 0.01231499059
C135: Rate Riders | E135: Metric | F135: Current Rate | H135: Proposed Rate | J135: Change $ | L135: Change %
C136: =C45 -> Delay in Revenue Recovery Rate Rider | E136: =E129 -> 4693 | F136: =$E136*F115/100 -> 76.63669 | H136: =$E136*H115/100 -> 76.63669 | J136: =H136-F136 -> 0 | L136: =J136/F136 -> 0
C137: =C46 -> ECVA Rate Rider | E137: =E130 -> 4693 | F137: =$E137*F116/100 -> 16.129841 | H137: =$E137*H116/100 -> 8.095425 | J137: =H137-F137 -> -8.034416 | L137: =J137/F137 -> -0.4981088158
C138: CIACVA Rate Rider | E138: 4693 | F138: 156.689884 | H138: 109.3419064 | J138: -47.34797758 | L138: -0.3021763522
C139: MTVA Rate Rider | E139: 4693 | F139: -130.962858 | H139: -107.366454 | J139: 23.596404 | L139: -0.1801763062
C140: ORDA Rate Rider | E140: =E136 -> 4693 | F140: 0 | H140: -3.38018435 | J140: -3.38018435
C141: 0 | E141: =E140 -> 4693 | F141: 0 | H141: 0 | J141: 0
C142: Total Rate Riders | F142: =SUM(F136:F141) -> 118.493557 | H142: =SUM(H136:H141) -> 83.32738307 | J142: =SUM(J136:J141) -> -35.16617393 | L142: =J142/F142 -> -0.2967770976
C144: Total Bill Impact | F144: =F133+F142 -> 3290.466815 | H144: =H133+H142 -> 3294.363462 | J144: =J133+J142 -> 3.896646914 | L144: =J144/F144 -> 0.001184223131
C146: Rate 1 - Small Agricultural | E146: Units | F146: Current Rate | H146: Proposed Rate
C148: Customer | E148: $/month | F148: =F103 -> 26.81 | H148: =H103 -> 27.448078
C149: =OneDollar -> Bill 32 Rate | E149: $/month | F149: 1 | H149: 1
C150: First 100 m3 | E150: ₵/m3 | F150: =F105 -> 28.72 | H150: =H105 -> 29.403536
C151: Next 400 m3 | E151: ₵/m3 | F151: 28.1542 | H151: 28.82426996
C152: GT 500m3 | E152: ₵/m3 | F152: 27.3226 | H152: 27.97287788
C153: Contracted Demand | E153: ₵ / contracted m3 | F153: 0 | H153: 0
C154: Gas Supply | E154: ₵/m3 | F154: 15.7983 | H154: 15.7983
C155: Upstream Recovery Charge | E155: ₵/m3 | F155: 1.474 | H155: 1.474
C156: Transportation & Storage Charge | E156: ₵/m3 | F156: 2.6982 | H156: 2.6982
C157: Federal Carbon Charge | E157: ₵/m3 | F157: 12.39 | H157: 12.39
C159: Rate Riders
C160: =C24 -> Delay in Revenue Recovery Rate Rider | E160: ₵/m3 | F160: =F115 -> 1.633 | H160: =H115 -> 1.633
C161: =C25 -> ECVA Rate Rider | E161: ₵/m3 | F161: =F116 -> 0.3437 | H161: =H116 -> 0.1725
C162: CIACVA Rate Rider | E162: ₵/m3 | F162: 3.3388 | H162: 2.329893595
C163: MTVA Rate Rider | E163: ₵/m3 | F163: -2.7906 | H163: -2.2878
C164: ORDA Rate Rider | E164: ₵/m3 | F164: 0 | H164: -0.07202608885
C165: 0 | E165: ₵/m3 | F165: 0 | H165: 0
C167: Delivery | E167: Metric | F167: Current Rate | H167: Proposed Rate | J167: Change $ | L167: Change %
C168: Customer | E168: 12 | F168: =F148*$E168 -> 321.72 | H168: =H148*$E168 -> 329.376936 | J168: =H168-F168 -> 7.656936 | L168: =J168/F168 -> 0.0238
C169: =OneDollar -> Bill 32 Rate | E169: =E168 -> 12 | F169: =F149*$E169 -> 12 | H169: =H149*$E169 -> 12 | J169: =H169-F169 -> 0 | L169: =J169/F169 -> 0
C170: First 100 m3 | E170: 1198.735789 | F170: =F150*$E170/100 -> 344.2769186 | H170: =H150*$E170/100 -> 352.4707093 | J170: =H170-F170 -> 8.193790663 | L170: =J170/F170 -> 0.0238
C171: Next 400 m3 | E171: 2484.065484 | F171: 699.3687646 | H171: 716.0137412 | J171: 16.6449766 | L171: 0.0238
C172: GT 500m3 | E172: 1037.198727 | F172: 283.3896593 | H172: 290.1343332 | J172: 6.744673891 | L172: 0.0238
C173: Contracted Demand | E173: 0 | F173: 0 | H173: 0 | J173: 0
C174: Commodity | E174: =SUM(E170:E173) -> 4720 | F174: 745.67976 | H174: 745.67976 | J174: 0 | L174: 0
C175: Upstream Recovery Charge | E175: =E174 -> 4720 | F175: 69.5728 | H175: 69.5728 | J175: 0 | L175: 0
C176: Transportation & Storage Charge | E176: =E175 -> 4720 | F176: 127.35504 | H176: 127.35504 | J176: 0 | L176: 0
C177: Federal Carbon Charge | E177: =E174 -> 4720 | F177: 584.808 | H177: 584.808 | J177: 0 | L177: 0
C178: Total Delivery | F178: =SUM(F168:F177) -> 3188.170942 | H178: =SUM(H168:H177) -> 3227.41132 | J178: =SUM(J168:J177) -> 39.24037715 | L178: =J178/F178 -> 0.0123081158
C180: Rate Riders | E180: Metric | F180: Current Rate | H180: Proposed Rate | J180: Change $ | L180: Change %
C181: =C136 -> Delay in Revenue Recovery Rate Rider | E181: =E174 -> 4720 | F181: =$E181*F160/100 -> 77.0776 | H181: =$E181*H160/100 -> 77.0776 | J181: =H181-F181 -> 0 | L181: =J181/F181 -> 0
C182: =C137 -> ECVA Rate Rider | E182: =E175 -> 4720 | F182: =$E182*F161/100 -> 16.22264 | H182: =$E182*H161/100 -> 8.142 | J182: =H182-F182 -> -8.08064 | L182: =J182/F182 -> -0.4981088158
C183: CIACVA Rate Rider | E183: 4720 | F183: 157.59136 | H183: 109.9709777 | J183: -47.62038231 | L183: -0.3021763522
C184: MTVA Rate Rider | E184: 4720 | F184: -131.71632 | H184: -107.98416 | J184: 23.73216 | L184: -0.1801763062
C185: ORDA Rate Rider | E185: =E184 -> 4720 | F185: 0 | H185: -3.399631394 | J185: -3.399631394
C186: 0 | E186: =E185 -> 4720 | F186: 0 | H186: 0 | J186: 0
C187: Total Rate Riders | F187: =SUM(F181:F186) -> 119.17528 | H187: =SUM(H181:H186) -> 83.8067863 | J187: =SUM(J181:J186) -> -35.3684937 | L187: =J187/F187 -> -0.2967770976
C189: Total Bill Impact | F189: =F178+F187 -> 3307.346222 | H189: =H178+H187 -> 3311.218106 | J189: =J178+J187 -> 3.871883449 | L189: =J189/F189 -> 0.001170691905

Sheet G1.2 Rate 6 Bill Impact
C2: ='A1.1 Distributor Information'!C3 -> Name of LDC: EPCOR Natural Gas Limited Partnership
C3: ='A1.1 Distributor Information'!C4 -> OEB Application Number: EB-2023-0161 Exhibit A - 2024 Custom Incentive Application
C5: Rate 6 Delivery Bill Impact
C6: G1.2 Rate 6 Bill Impact
C8: Rate 6 - Medium Commercial | E8: Units | F8: Current Rate | H8: Proposed Rate
C10: Customer | E10: $/month | F10: =INDEX('B1.1 Current Distribution Rates'!$E$10:$Q$13,2,COUNTA($C$10:C10)) -> 109.33 | H10: =INDEX('E1.1 Proposed Dist Rates '!$E$10:$Q$13,2,COUNTA($C$10:C10)) -> 111.932054
C11: =OneDollar -> Bill 32 Rate | E11: $/month | F11: =INDEX('B1.1 Current Distribution Rates'!$E$10:$Q$13,2,COUNTA($C$10:C11)) -> 1 | H11: =INDEX('E1.1 Proposed Dist Rates '!$E$10:$Q$13,2,COUNTA($C$10:C11)) -> 1
C12: First 1000 m3 | E12: ₵/m3 | F12: =INDEX('B1.1 Current Distribution Rates'!$E$10:$Q$13,2,COUNTA($C$10:C12)) -> 26.4949 | H12: =INDEX('E1.1 Proposed Dist Rates '!$E$10:$Q$13,2,COUNTA($C$10:C12)) -> 27.12547862
C13: Next 6000 m3 | E13: ₵/m3 | F13: =INDEX('B1.1 Current Distribution Rates'!$E$10:$Q$13,2,COUNTA($C$10:C13)) -> 23.8455 | H13: =INDEX('E1.1 Proposed Dist Rates '!$E$10:$Q$13,2,COUNTA($C$10:C13)) -> 24.4130229
C14: GT 7000m3 | E14: ₵/m3 | F14: =INDEX('B1.1 Current Distribution Rates'!$E$10:$Q$13,2,COUNTA($C$10:C14)) -> 22.653 | H14: =INDEX('E1.1 Proposed Dist Rates '!$E$10:$Q$13,2,COUNTA($C$10:C14)) -> 23.1921414
C15: Contracted Demand | E15: ₵ / contracted m3 | F15: =INDEX('B1.1 Current Distribution Rates'!$E$10:$Q$13,2,COUNTA($C$10:C15)) -> 0 | H15: =INDEX('E1.1 Proposed Dist Rates '!$E$10:$Q$13,2,COUNTA($C$10:C15)) -> 0
C16: Gas Supply | E16: ₵/m3 | F16: =INDEX('B1.1 Current Distribution Rates'!$E$10:$Q$13,2,COUNTA($C$10:C16)) -> 15.7983 | H16: =INDEX('E1.1 Proposed Dist Rates '!$E$10:$Q$13,2,COUNTA($C$10:C16)) -> 15.7983
C17: Upstream Recovery Charge | E17: ₵/m3 | F17: =INDEX('B1.1 Current Distribution Rates'!$E$10:$Q$13,2,COUNTA($C$10:C17)) -> 2.92 | H17: =INDEX('E1.1 Proposed Dist Rates '!$E$10:$Q$13,2,COUNTA($C$10:C17)) -> 2.92
C18: Transportation & Storage Charge | E18: ₵/m3 | F18: =INDEX('B1.1 Current Distribution Rates'!$E$10:$Q$13,2,COUNTA($C$10:C18)) -> 5.6413 | H18: =INDEX('E1.1 Proposed Dist Rates '!$E$10:$Q$13,2,COUNTA($C$10:C18)) -> 5.6413
C19: Federal Carbon Charge | E19: ₵/m3 | F19: ='B1.1 Current Distribution Rates'!Q11 -> 12.39 | H19: ='E1.1 Proposed Dist Rates '!Q11 -> 12.39
C21: Rate Riders
C22: Delay in Revenue Recovery Rate Rider | E22: ₵/m3 | F22: ='C1.1 Current Rate Riders'!$E$11 -> 0.909 | H22: ='F1.3 Proposed Rate Riders'!$E$10 -> 0.909
C23: ='F1.3 Proposed Rate Riders'!$E$16 -> ECVA Rate Rider | F23: ='C1.1 Current Rate Riders'!$E$20 -> 0.2778 | H23: ='F1.3 Proposed Rate Riders'!$E$19 -> 0.1903
C24: ='F1.3 Proposed Rate Riders'!$E$25 -> CIACVA Rate Rider | F24: ='C1.1 Current Rate Riders'!$E$29 -> 3.1385 | H24: ='F1.3 Proposed Rate Riders'!$E$28 -> 3.125450894
C25: ='F1.3 Proposed Rate Riders'!$E$34 -> MTVA Rate Rider | F25: ='C1.1 Current Rate Riders'!$E$38 -> -3.404 | H25: ='F1.3 Proposed Rate Riders'!$E$37 -> -3.9827
C26: ='F1.3 Proposed Rate Riders'!$E$43 -> ORDA Rate Rider | F26: 0 | H26: ='F1.3 Proposed Rate Riders'!$E$46 -> -0.09661986464
C27: ='F1.3 Proposed Rate Riders'!$E$52 -> 0 | F27: 0 | H27: ='F1.3 Proposed Rate Riders'!$E$55 -> 0
C29: Delivery | E29: Metric | F29: Current Rate | H29: Proposed Rate | J29: Change $ | L29: Change %
C30: Customer | E30: 12 | F30: =F10*$E30 -> 1311.96 | H30: =H10*$E30 -> 1343.184648 | J30: =H30-F30 -> 31.224648 | L30: =J30/F30 -> 0.0238
C31: =OneDollar -> Bill 32 Rate | E31: =E30 -> 12 | F31: =E31*F11 -> 12 | H31: =E31*H11 -> 12 | J31: 0 | L31: 0
C32: First 1000 m3 | E32: 9831.543338 | F32: =F12*$E32/100 -> 2604.857576 | H32: =H12*$E32/100 -> 2666.853186 | J32: 61.99561031 | L32: 0.0238
C33: Next 6000 m3 | E33: 17101.45666 | F33: 4077.927848 | H33: 4174.982531 | J33: 97.05468279 | L33: 0.0238
C34: GT 7000m3 | E34: 0 | F34: 0 | H34: 0 | J34: 0
C35: Contracted Demand | E35: 0 | F35: 0 | H35: 0 | J35: 0
C36: Gas Supply | E36: =SUM(E32:E35) -> 26933 | F36: 4254.956139 | H36: 4254.956139 | J36: 0 | L36: 0
C37: Upstream Recovery Charge | E37: =E36 -> 26933 | F37: 786.4436 | H37: 786.4436 | J37: 0 | L37: 0
C38: Transportation & Storage Charge | E38: =E37 -> 26933 | F38: 1519.371329 | H38: 1519.371329 | J38: 0 | L38: 0
C39: Federal Carbon Charge | E39: =E38 -> 26933 | F39: 3336.9987 | H39: 3336.9987 | J39: 0 | L39: 0
C40: Total Delivery | F40: =SUM(F30:F39) -> 17904.51519 | H40: =SUM(H30:H39) -> 18094.79013 | J40: =SUM(J30:J39) -> 190.2749411 | L40: 0.01062720431
C42: Rate Riders | E42: Metric | F42: Current Rate | H42: Proposed Rate | J42: Change $ | L42: Change %
C43: =C22 -> Delay in Revenue Recovery Rate Rider | E43: =E36 -> 26933 | F43: =$E43*F22/100 -> 244.82097 | H43: =$E43*H22/100 -> 244.82097 | J43: =H43-F43 -> 0 | L43: =J43/F43 -> 0
C44: =C23 -> ECVA Rate Rider | E44: =E43 -> 26933 | F44: =$E44*F23/100 -> 74.819874 | H44: =$E44*H23/100 -> 51.253499 | J44: =H44-F44 -> -23.566375 | L44: =J44/F44 -> -0.314974802
C45: CIACVA Rate Rider | E45: =E43 -> 26933 | F45: 845.292205 | H45: 841.7776892 | J45: -3.514515786 | L45: -0.004157752508
C46: MTVA Rate Rider | E46: =E45 -> 26933 | F46: -916.79932 | H46: -1072.660591 | J46: -155.861271 | L46: 0.1700058754
C47: ORDA Rate Rider | E47: =E44 -> 26933 | F47: 0 | H47: -26.02262814 | J47: -26.02262814
C48: 0 | E48: =E47 -> 26933 | F48: 0 | H48: 0 | J48: 0
C49: Total Rate Riders | F49: =SUM(F43:F48) -> 248.133729 | H49: =SUM(H43:H48) -> 39.16893907 | J49: =SUM(J43:J48) -> -208.9647899 | L49: =J49/F49 -> -0.8421458492
C51: Total Bill Impact | F51: =F40+F49 -> 18152.64892 | H51: =H40+H49 -> 18133.95907 | J51: =J40+J49 -> -18.68984883 | L51: =J51/F51 -> -0.001029593472
C54: Rate 6 - Large Commercial | E54: Units | F54: Current Rate | H54: Proposed Rate
C56: Customer | E56: $/month | F56: =F10 -> 109.33 | H56: =H10 -> 111.932054
C57: =OneDollar -> Bill 32 Rate | E57: $/month | F57: 1 | H57: 1
C58: First 1000 m3 | E58: ₵/m3 | F58: 26.4949 | H58: 27.12547862
C59: Next 6000 m3 | E59: ₵/m3 | F59: 23.8455 | H59: 24.4130229
C60: GT 7000m3 | E60: ₵/m3 | F60: 22.653 | H60: 23.1921414
C61: Contracted Demand | E61: ₵ / contracted m3 | F61: 0 | H61: 0
C62: Gas Supply | E62: ₵/m3 | F62: 15.7983 | H62: 15.7983
C63: Upstream Recovery Charge | E63: ₵/m3 | F63: 2.92 | H63: 2.92
C64: Transportation & Storage Charge | E64: ₵/m3 | F64: 5.6413 | H64: 5.6413
C65: Federal Carbon Charge | E65: ₵/m3 | F65: 12.39 | H65: 12.39
C67: Rate Riders
C68: =C22 -> Delay in Revenue Recovery Rate Rider | E68: ₵/m3 | F68: =F22 -> 0.909 | H68: =H22 -> 0.909
C69: =C23 -> ECVA Rate Rider | E69: ₵/m3 | F69: =F23 -> 0.2778 | H69: =H23 -> 0.1903
C70: CIACVA Rate Rider | E70: ₵/m3 | F70: 3.1385 | H70: 3.125450894
C71: MTVA Rate Rider | E71: ₵/m3 | F71: -3.404 | H71: -3.9827
C72: ORDA Rate Rider | E72: ₵/m3 | F72: 0 | H72: -0.09661986464
C73: 0 | E73: ₵/m3 | F73: 0 | H73: 0
C75: Delivery | E75: Metric | F75: Current Rate | H75: Proposed Rate | J75: Change $ | L75: Change %
C76: Customer | E76: 12 | F76: =F56*$E76 -> 1311.96 | H76: =H56*$E76 -> 1343.184648 | J76: =H76-F76 -> 31.224648 | L76: =J76/F76 -> 0.0238
C77: =OneDollar -> Bill 32 Rate | E77: 12 | F77: =E77*F57 -> 12 | H77: =E77*H57 -> 12 | J77: =H77-F77 -> 0 | L77: =J77/F77 -> 0
C78: First 1000 m3 | E78: 11715.32619 | F78: =F58*$E78/100 -> 3103.963958 | H78: =H58*$E78/100 -> 3177.8383 | J78: =H78-F78 -> 73.8743422 | L78: =J78/F78 -> 0.0238
C79: Next 6000 m3 | E79: 40792.71842 | F79: 9727.227671 | H79: 9958.735689 | J79: 231.5080186 | L79: 0.0238
C80: GT 7000m3 | E80: 23176.95539 | F80: 5250.275705 | H80: 5375.232267 | J80: 124.9565618 | L80: 0.0238
C81: Contracted Demand | E81: 0 | F81: 0 | H81: 0 | J81: 0
C82: Gas Supply | E82: =SUM(E78:E81) -> 75685 | F82: 11956.94336 | H82: 11956.94336 | J82: 0 | L82: 0
C83: Upstream Recovery Charge | E83: =E82 -> 75685 | F83: 2210.002 | H83: 2210.002 | J83: 0 | L83: 0
C84: Transportation & Storage Charge | E84: =E83 -> 75685 | F84: 4269.617905 | H84: 4269.617905 | J84: 0 | L84: 0
C85: Federal Carbon Charge | E85: =E84 -> 75685 | F85: 9377.3715 | H85: 9377.3715 | J85: 0 | L85: 0
C86: Total Delivery | F86: =SUM(F76:F85) -> 47219.36209 | H86: =SUM(H76:H85) -> 47680.92566 | J86: =SUM(J76:J85) -> 461.5635705 | L86: =J86/F86 -> 0.009774879416
C88: Rate Riders | E88: Metric | F88: Current Rate | H88: Proposed Rate | J88: Change $ | L88: Change %
C89: =C43 -> Delay in Revenue Recovery Rate Rider | E89: =E82 -> 75685 | F89: =$E89*F68/100 -> 687.97665 | H89: =$E89*H68/100 -> 687.97665 | J89: =H89-F89 -> 0 | L89: =J89/F89 -> 0
C90: =C44 -> ECVA Rate Rider | E90: =E89 -> 75685 | F90: =$E90*F69/100 -> 210.25293 | H90: =$E90*H69/100 -> 144.028555 | J90: =H90-F90 -> -66.224375 | L90: =J90/F90 -> -0.314974802
C91: CIACVA Rate Rider | E91: =E90 -> 75685 | F91: 2375.373725 | H91: 2365.497509 | J91: -9.876216063 | L91: -0.004157752508
C92: MTVA Rate Rider | E92: 75685 | F92: -2576.3174 | H92: -3014.306495 | J92: -437.989095 | L92: 0.1700058754
C93: ORDA Rate Rider | E93: 75685 | F93: 0 | H93: -73.12674455 | J93: -73.12674455
C94: 0 | E94: 75685 | F94: 0 | H94: 0 | J94: 0
C95: Total Rate Riders | F95: =SUM(F89:F94) -> 697.285905 | H95: =SUM(H89:H94) -> 110.0694744 | J95: =SUM(J89:J94) -> -587.2164306 | L95: =J95/F95 -> -0.8421458492
C97: Total Bill Impact | F97: =F86+F95 -> 47916.648 | H97: =H86+H95 -> 47790.99514 | J97: =J86+J95 -> -125.6528601 | L97: =J97/F97 -> -0.00262232158

Sheet G1.3 Rate 11 Bill Impact
C2: ='A1.1 Distributor Information'!C3 -> Name of LDC: EPCOR Natural Gas Limited Partnership
C3: ='A1.1 Distributor Information'!C4 -> OEB Application Number: EB-2023-0161 Exhibit A - 2024 Custom Incentive Application
C5: Rate 11 Delivery Bill Impact
C6: =MID(CELL("filename",A1),FIND("]",CELL("filename",A1))+1,255) -> G1.3 Rate 11 Bill Impact
C8: Rate 11 - Large Seasonal Service Sample Dryer 1 | E8: Units | F8: Current Rate | H8: Proposed Rate
C10: Customer | E10: $/month | F10: =INDEX('B1.1 Current Distribution Rates'!$E$10:$Q$13,3,COUNTA($C10:C$10)) -> 218.66 | H10: =INDEX('E1.1 Proposed Dist Rates '!$E$10:$Q$13,3,COUNTA($C10:C$10)) -> 223.864108
C11: =OneDollar -> Bill 32 Rate | E11: $/month | F11: =INDEX('B1.1 Current Distribution Rates'!$E$10:$Q$13,3,COUNTA($C$10:C11)) -> 1 | H11: =INDEX('E1.1 Proposed Dist Rates '!$E$10:$Q$13,3,COUNTA($C$10:C11)) -> 1
C12: All Volumes | E12: ₵/m3 | F12: =INDEX('B1.1 Current Distribution Rates'!$E$10:$Q$13,3,COUNTA($C$10:C12)) -> 16.4578 | H12: =INDEX('E1.1 Proposed Dist Rates '!$E$10:$Q$13,3,COUNTA($C$10:C12)) -> 16.84949564
C13: Tier 2 | E13: ₵/m3 | F13: =INDEX('B1.1 Current Distribution Rates'!$E$10:$Q$13,3,COUNTA($C$10:C13)) -> 16.4578 | H13: =INDEX('E1.1 Proposed Dist Rates '!$E$10:$Q$13,3,COUNTA($C$10:C13)) -> 16.84949564
C14: Tier 3 | E14: ₵/m3 | F14: =INDEX('B1.1 Current Distribution Rates'!$E$10:$Q$13,3,COUNTA($C$10:C14)) -> 16.4578 | H14: =INDEX('E1.1 Proposed Dist Rates '!$E$10:$Q$13,3,COUNTA($C$10:C14)) -> 16.84949564
C15: Contracted Demand | E15: ₵ / contracted m3 | F15: =INDEX('B1.1 Current Distribution Rates'!$E$10:$Q$13,3,COUNTA($C$10:C15)) -> 0 | H15: =INDEX('E1.1 Proposed Dist Rates '!$E$10:$Q$13,3,COUNTA($C$10:C15)) -> 0
C16: Gas Supply | E16: ₵/m3 | F16: =INDEX('B1.1 Current Distribution Rates'!$E$10:$Q$13,3,COUNTA($C$10:C16)) -> 15.7983 | H16: =INDEX('E1.1 Proposed Dist Rates '!$E$10:$Q$13,3,COUNTA($C$10:C16)) -> 15.7983
C17: Upstream Recovery Charge | E17: ₵/m3 | F17: =INDEX('B1.1 Current Distribution Rates'!$E$10:$Q$13,3,COUNTA($C$10:C17)) -> 0.0352 | H17: =INDEX('E1.1 Proposed Dist Rates '!$E$10:$Q$13,3,COUNTA($C$10:C17)) -> 0.0352
C18: Transportation & Storage Charge | E18: ₵/m3 | F18: =INDEX('B1.1 Current Distribution Rates'!$E$10:$Q$13,3,COUNTA($C$10:C18)) -> 1.8166 | H18: =INDEX('E1.1 Proposed Dist Rates '!$E$10:$Q$13,3,COUNTA($C$10:C18)) -> 1.8166
C19: Federal Carbon Charge | E19: ₵/m3 | F19: ='B1.1 Current Distribution Rates'!Q12 -> 12.39 | H19: ='E1.1 Proposed Dist Rates '!Q12 -> 12.39
C21: Rate Riders
C22: Delay in Revenue Recovery Rate Rider | E22: ₵/m3 | F22: ='C1.1 Current Rate Riders'!$E$12 -> 0.5524 | H22: ='F1.3 Proposed Rate Riders'!$E$11 -> 0.5524
C23: ='F1.3 Proposed Rate Riders'!$E$16 -> ECVA Rate Rider | E23: ₵/m3 | F23: ='C1.1 Current Rate Riders'!$E$21 -> 0.1857 | H23: ='F1.3 Proposed Rate Riders'!$E$20 -> 0.1425
C24: ='F1.3 Proposed Rate Riders'!$E$25 -> CIACVA Rate Rider | E24: ₵/m3 | F24: ='C1.1 Current Rate Riders'!$E$30 -> 0.6074 | H24: ='F1.3 Proposed Rate Riders'!$E$29 -> 0.6051211267
C25: ='F1.3 Proposed Rate Riders'!$E$34 -> MTVA Rate Rider | E25: ₵/m3 | F25: ='C1.1 Current Rate Riders'!$E$39 -> -0.6604 | H25: ='F1.3 Proposed Rate Riders'!$E$38 -> -0.773
C26: ='F1.3 Proposed Rate Riders'!$E$43 -> ORDA Rate Rider | E26: ₵/m3 | F26: 0 | H26: ='F1.3 Proposed Rate Riders'!$E$47 -> -0.01870665172
C27: ='F1.3 Proposed Rate Riders'!$E$52 -> 0 | E27: ₵/m3 | F27: 0 | H27: ='F1.3 Proposed Rate Riders'!$E$56 -> 0
C29: Delivery | E29: Metric | F29: Current Rate | H29: Proposed Rate | J29: Change $ | L29: Change %
C30: Customer | E30: 12 | F30: =F10*$E30 -> 2623.92 | H30: =H10*$E30 -> 2686.369296 | J30: =H30-F30 -> 62.449296 | L30: =J30/F30 -> 0.0238
C31: =OneDollar -> Bill 32 Rate | E31: 12 | F31: =$E31*F11 -> 12 | H31: =$E31*H11 -> 12 | J31: 0 | L31: 0
C32: All Volumes | E32: 101499.4857 | F32: =F12*$E32/100 -> 16704.58236 | H32: =H12*$E32/100 -> 17102.15142 | J32: 397.5690603 | L32: 0.0238
C33: Tier 2 | E33: 0 | F33: 0 | H33: 0 | J33: 0
C34: Tier 3 | E34: 0 | F34: 0 | H34: 0 | J34: 0
C35: Contracted Demand | E35: 0 | F35: 0 | H35: 0 | J35: 0
C36: Gas Supply | E36: =SUM(E32:E35) -> 101499.4857 | F36: 16035.19326 | H36: 16035.19326 | J36: 0 | L36: 0
C37: Upstream Recovery Charge | E37: =E36 -> 101499.4857 | F37: 35.72781898 | H37: 35.72781898 | J37: 0 | L37: 0
C38: Transportation & Storage Charge | E38: =E37 -> 101499.4857 | F38: 1843.839658 | H38: 1843.839658 | J38: 0 | L38: 0
C39: Federal Carbon Charge | E39: =E38 -> 101499.4857 | F39: =$E39*F19/100 -> 12575.78628 | H39: =$E39*H19/100 -> 12575.78628 | J39: 0 | L39: 0
C40: Total Delivery | F40: =SUM(F30:F39) -> 49831.04938 | H40: =SUM(H30:H39) -> 50291.06773 | J40: =SUM(J30:J39) -> 460.0183563 | L40: 0.009231560683
C42: Rate Riders | E42: Metric | F42: Current Rate | H42: Proposed Rate | J42: Change $ | L42: Change %
C43: =C22 -> Delay in Revenue Recovery Rate Rider | E43: =E36 -> 101499.4857 | F43: =$E43*F22/100 -> 560.6831592 | H43: =$E43*H22/100 -> 560.6831592 | J43: =H43-F43 -> 0 | L43: =J43/F43 -> 0
C44: =C23 -> ECVA Rate Rider | E44: =E37 -> 101499.4857 | F44: =$E44*F23/100 -> 188.484545 | H44: =$E44*H23/100 -> 144.6367672 | J44: =H44-F44 -> -43.84777784 | L44: =J44/F44 -> -0.2326332795
C45: CIACVA Rate Rider | E45: 101499.4857 | F45: 616.5078764 | H45: 614.1948316 | J45: -2.313044727 | L45: -0.003751849434
C46: MTVA Rate Rider | E46: 101499.4857 | F46: -670.3026038 | H46: -784.5910247 | J46: -114.2884209 | L46: 0.1705027256
C47: ORDA Rate Rider | E47: =E46 -> 101499.4857 | F47: 0 | H47: -18.9871553 | J47: -18.9871553
C48: 0 | E48: =E47 -> 101499.4857 | F48: 0 | H48: 0 | J48: 0
C49: Total Rate Riders | F49: =SUM(F43:F48) -> 695.3729768 | H49: =SUM(H43:H48) -> 515.936578 | J49: -179.4363988 | L49: =J49/F49 -> -0.2580433879
C51: Total Bill Impact | F51: =F40+F49 -> 50526.42235 | H51: =H40+H49 -> 50807.00431 | J51: =J40+J49 -> 280.5819574 | L51: =J51/F51 -> 0.005553172862
C53: Rate 11 - Large Seasonal Service Sample Dryer 2 | E53: Units | F53: Current Rate | H53: Proposed Rate
C55: Customer | E55: $/month | F55: =F10 -> 218.66 | H55: =H10 -> 223.864108
C56: =OneDollar -> Bill 32 Rate | E56: $/month | F56: 1 | H56: 1
C57: All Volumes | E57: ₵/m3 | F57: =F12 -> 16.4578 | H57: =H12 -> 16.84949564
C58: Tier 2 | E58: ₵/m3 | F58: 16.4578 | H58: 16.84949564
C59: Tier 3 | E59: ₵/m3 | F59: 16.4578 | H59: 16.84949564
C60: Contracted Demand | E60: ₵ / contracted m3 | F60: 0 | H60: 0
C61: Gas Supply | E61: ₵/m3 | F61: 15.7983 | H61: 15.7983
C62: Upstream Recovery Charge | E62: ₵/m3 | F62: 0.0352 | H62: 0.0352
C63: Transportation & Storage Charge | E63: ₵/m3 | F63: 1.8166 | H63: 1.8166
C64: Federal Carbon Charge | E64: ₵/m3 | F64: 12.39 | H64: =F64 -> 12.39
C66: Rate Riders
C67: =C22 -> Delay in Revenue Recovery Rate Rider | E67: ₵/m3 | F67: =F22 -> 0.5524 | H67: =H22 -> 0.5524
C68: =C23 -> ECVA Rate Rider | E68: ₵/m3 | F68: =F23 -> 0.1857 | H68: =H23 -> 0.1425
C69: CIACVA Rate Rider | E69: ₵/m3 | F69: 0.6074 | H69: 0.6051211267
C70: MTVA Rate Rider | E70: ₵/m3 | F70: -0.6604 | H70: -0.773
C71: ORDA Rate Rider | E71: ₵/m3 | F71: 0 | H71: -0.01870665172
C72: 0 | E72: ₵/m3 | F72: 0 | H72: 0
C74: Delivery | E74: Metric | F74: Current Rate | H74: Proposed Rate | J74: Change $ | L74: Change %
C75: Customer | E75: 12 | F75: =F55*$E75 -> 2623.92 | H75: =H55*$E75 -> 2686.369296 | J75: =H75-F75 -> 62.449296 | L75: =J75/F75 -> 0.0238
C76: =OneDollar -> Bill 32 Rate | E76: 12 | F76: =$E76*F56 -> 12 | H76: =$E76*H56 -> 12 | J76: =H76-F76 -> 0 | L76: =J76/F76 -> 0
C77: All Volumes | E77: 338331.6191 | F77: =F57*$E77/100 -> 55681.94121 | H77: =H57*$E77/100 -> 57007.17141 | J77: =H77-F77 -> 1325.230201 | L77: =J77/F77 -> 0.0238
C78: Tier 2 | E78: 0 | F78: 0 | H78: 0 | J78: 0
C79: Tier 3 | E79: 0 | F79: 0 | H79: 0 | J79: 0
C80: Contracted Demand | E80: 0 | F80: 0 | H80: 0 | J80: 0
C81: Gas Supply | E81: =SUM(E77:E80) -> 338331.6191 | F81: 53450.64418 | H81: 53450.64418 | J81: 0 | L81: 0
C82: Upstream Recovery Charge | E82: =E81 -> 338331.6191 | F82: 119.0927299 | H82: 119.0927299 | J82: 0 | L82: 0
C83: Transportation & Storage Charge | E83: =E82 -> 338331.6191 | F83: 6146.132193 | H83: 6146.132193 | J83: 0 | L83: 0
C84: Federal Carbon Charge | E84: =E83 -> 338331.6191 | F84: =$E84*F64/100 -> 41919.28761 | H84: =$E84*H64/100 -> 41919.28761 | J84: 0 | L84: 0
C85: Total Delivery | F85: =SUM(F75:F84) -> 159953.0179 | H85: =SUM(H75:H84) -> 161340.6974 | J85: =SUM(J75:J84) -> 1387.679497 | L85: =J85/F85 -> 0.008675544324
C87: Rate Riders | E87: Metric | F87: Current Rate | H87: Proposed Rate | J87: Change $ | L87: Change %
C88: =C67 -> Delay in Revenue Recovery Rate Rider | E88: =E81 -> 338331.6191 | F88: =$E88*F67/100 -> 1868.943864 | H88: =$E88*H67/100 -> 1868.943864 | J88: =H88-F88 -> 0 | L88: =J88/F88 -> 0
C89: =C68 -> ECVA Rate Rider | E89: =E82 -> 338331.6191 | F89: =$E89*F68/100 -> 628.2818167 | H89: =$E89*H68/100 -> 482.1225572 | J89: =H89-F89 -> -146.1592595 | L89: =J89/F89 -> -0.2326332795
C90: CIACVA Rate Rider | E90: 338331.6191 | F90: 2055.026255 | H90: 2047.316105 | J90: -7.71014909 | L90: -0.003751849434
C91: MTVA Rate Rider | E91: 338331.6191 | F91: -2234.342013 | H91: -2615.303416 | J91: -380.9614031 | L91: 0.1705027256
C92: ORDA Rate Rider | E92: =E91 -> 338331.6191 | F92: 0 | H92: -63.29051766 | J92: -63.29051766
C93: 0 | E93: =E92 -> 338331.6191 | F93: 0 | H93: 0 | J93: 0
C94: Total Rate Riders | F94: =SUM(F88:F93) -> 2317.909923 | H94: =SUM(H88:H93) -> 1719.788593 | J94: =SUM(J88:J93) -> -598.1213293 | L94: =J94/F94 -> -0.2580433879
C96: Total Bill Impact | F96: =F85+F94 -> 162270.9278 | H96: =H85+H94 -> 163060.486 | J96: =J85+J94 -> 789.5581675 | L96: =J96/F96 -> 0.004865678517

Sheet G1.4 Rate 16 Bill Impact
C2: ='A1.1 Distributor Information'!C3 -> Name of LDC: EPCOR Natural Gas Limited Partnership
C3: ='A1.1 Distributor Information'!C4 -> OEB Application Number: EB-2023-0161 Exhibit A - 2024 Custom Incentive Application
C5: Rate 16 Delivery Bill Impact
C6: =MID(CELL("filename",A1),FIND("]",CELL("filename",A1))+1,255) -> G1.4 Rate 16 Bill Impact
C8: Rate 16 - Contracted Demand | E8: Units | F8: Current Rate | H8: Proposed Rate
C10: Customer | E10: $/month | F10: =INDEX('B1.1 Current Distribution Rates'!$E$10:$Q$13,4,COUNTA($C$10:C10)) -> 1607.77 | H10: =INDEX('E1.1 Proposed Dist Rates '!$E$10:$Q$13,4,COUNTA($C$10:C10)) -> 1646.034926
C11: =OneDollar -> Bill 32 Rate | E11: $/month | F11: =INDEX('B1.1 Current Distribution Rates'!$E$10:$Q$13,4,COUNTA($C$10:C11)) -> 1 | H11: =INDEX('E1.1 Proposed Dist Rates '!$E$10:$Q$13,4,COUNTA($C$10:C11)) -> 1
C12: Tier 1 | E12: ₵/m3 | F12: =INDEX('B1.1 Current Distribution Rates'!$E$10:$Q$13,4,COUNTA($C$10:C12)) -> 0 | H12: =INDEX('E1.1 Proposed Dist Rates '!$E$10:$Q$13,4,COUNTA($C$10:C12)) -> 0
C13: Tier 2 | E13: ₵/m3 | F13: =INDEX('B1.1 Current Distribution Rates'!$E$10:$Q$13,4,COUNTA($C$10:C13)) -> 0 | H13: =INDEX('E1.1 Proposed Dist Rates '!$E$10:$Q$13,4,COUNTA($C$10:C13)) -> 0
C14: Tier 3 | E14: ₵/m3 | F14: =INDEX('B1.1 Current Distribution Rates'!$E$10:$Q$13,4,COUNTA($C$10:C14)) -> 0 | H14: =INDEX('E1.1 Proposed Dist Rates '!$E$10:$Q$13,4,COUNTA($C$10:C14)) -> 0
C15: Contracted Demand | E15: ₵ / contracted m3 | F15: =INDEX('B1.1 Current Distribution Rates'!$E$10:$Q$13,4,COUNTA($C$10:C15)) -> 109.665 | H15: =INDEX('E1.1 Proposed Dist Rates '!$E$10:$Q$13,4,COUNTA($C$10:C15)) -> 112.275027
C16: Gas Supply | E16: ₵/m3 | F16: =INDEX('B1.1 Current Distribution Rates'!$E$10:$Q$13,4,COUNTA($C$10:C16)) -> 0 | H16: =INDEX('E1.1 Proposed Dist Rates '!$E$10:$Q$13,4,COUNTA($C$10:C16)) -> 0
C17: Upstream Recovery Charge | E17: ₵ / contracted m3 | F17: =INDEX('B1.1 Current Distribution Rates'!$E$10:$Q$13,4,COUNTA($C$10:C17)) -> 14.2434 | H17: =INDEX('E1.1 Proposed Dist Rates '!$E$10:$Q$13,4,COUNTA($C$10:C17)) -> 14.2434
C18: Transportation Charge From Dawn | E18: ₵ / contracted m3 | F18: =INDEX('B1.1 Current Distribution Rates'!$E$10:$Q$13,4,COUNTA($C$10:C18)+1) -> 18.2999 | H18: =INDEX('E1.1 Proposed Dist Rates '!$E$10:$Q$13,4,COUNTA($C$10:C18)+1) -> 18.2999
C19: Transportation Charge From Kirkwall | E19: ₵ / contracted m3 | F19: =INDEX('B1.1 Current Distribution Rates'!$E$10:$Q$13,4,COUNTA($C$10:C19)+1) -> 11.848 | H19: =INDEX('E1.1 Proposed Dist Rates '!$E$10:$Q$13,4,COUNTA($C$10:C19)+1) -> 11.848
C20: Transportation Charge From Parkway | E20: ₵ / contracted m3 | F20: =INDEX('B1.1 Current Distribution Rates'!$E$10:$Q$13,4,COUNTA($C$10:C20)+1) -> 11.848 | H20: =INDEX('E1.1 Proposed Dist Rates '!$E$10:$Q$13,4,COUNTA($C$10:C20)+1) -> 11.848
C21: Federal Carbon Charge | E21: ₵/m3 | F21: =INDEX('B1.1 Current Distribution Rates'!$E$10:$Q$13,4,COUNTA($C$10:C21)+1) -> 12.39 | H21: =INDEX('E1.1 Proposed Dist Rates '!$E$10:$Q$13,4,COUNTA($C$10:C21)+1) -> 12.39
C23: Rate Riders
C24: Delay in Revenue Recovery Rate Rider | E24: ₵ / contracted m3 | F24: ='C1.1 Current Rate Riders'!$E$13 -> 0.0601 | H24: ='F1.3 Proposed Rate Riders'!$E$12 -> 0.0601
C25: ='F1.3 Proposed Rate Riders'!$E$16 -> ECVA Rate Rider | E25: ₵ / contracted m3 | F25: ='C1.1 Current Rate Riders'!$E$22 -> 0 | H25: ='F1.3 Proposed Rate Riders'!$E$21 -> 0
C26: ='F1.3 Proposed Rate Riders'!$E$25 -> CIACVA Rate Rider | E26: ₵ / contracted m3 | F26: ='C1.1 Current Rate Riders'!$E$31 -> 4.5311 | H26: ='F1.3 Proposed Rate Riders'!$E$30 -> 4.766349443
C27: ='F1.3 Proposed Rate Riders'!$E$34 -> MTVA Rate Rider | E27: ₵ / contracted m3 | F27: ='C1.1 Current Rate Riders'!$E$40 -> -4.5564 | H27: ='F1.3 Proposed Rate Riders'!$E$39 -> -5.6311
C28: ='F1.3 Proposed Rate Riders'!$E$43 -> ORDA Rate Rider | E28: ₵ / contracted m3 | F28: 0 | H28: ='F1.3 Proposed Rate Riders'!$E$48 -> -0.1473464321
C29: ='F1.3 Proposed Rate Riders'!$E$52 -> 0 | E29: ₵ / contracted m3 | F29: 0 | H29: ='F1.3 Proposed Rate Riders'!$E$57 -> 0
C31: Delivery | E31: Metric | F31: Current Rate | H31: Proposed Rate | J31: Change $ | L31: Change %
C32: Customer | E32: 12 | F32: =F10*$E32 -> 19293.24 | H32: =H10*$E32 -> 19752.41911 | J32: =H32-F32 -> 459.179112 | L32: =J32/F32 -> 0.0238
C33: =OneDollar -> Bill 32 Rate | E33: =E32 -> 12 | F33: =$E33*F11 -> 12 | H33: =$E33*H11 -> 12 | J33: 0 | L33: 0
C34: Tier 1 | E34: 0 | F34: =F12*$E34/100 -> 0 | H34: =H12*$E34/100 -> 0 | J34: 0
C35: Tier 2 | E35: 0 | F35: =F13*$E35/100 -> 0 | H35: =H13*$E35/100 -> 0 | J35: 0
C36: Tier 3 | E36: 0 | F36: =F14*$E36/100 -> 0 | H36: =H14*$E36/100 -> 0 | J36: 0
C37: Contracted Demand | E37: 50000 | F37: =F15*$E37/100*$E$32 -> 657990 | H37: =H15*$E37/100*$E$32 -> 673650.162 | J37: 15660.162 | L37: 0.0238
C38: Gas Supply | E38: 0 | F38: =F16*$E38/100 -> 0 | H38: =H16*$E38/100 -> 0 | J38: 0
C39: Upstream Recovery Charge | E39: =$E$37 -> 50000 | F39: =F17*$E39/100*$E$32 -> 85460.4 | H39: =H17*$E39/100*$E$32 -> 85460.4 | J39: 0 | L39: 0
C40: Transportation Charge From Dawn | E40: =$E$37 -> 50000 | F40: =F18*$E40/100*$E$32 -> 109799.4 | H40: =H18*$E40/100*$E$32 -> 109799.4 | J40: 0 | L40: 0
C41: Transportation Charge From Kirkwall | E41: 0 | F41: =F19*$E41/100*$E$32 -> 0 | H41: =H19*$E41/100*$E$32 -> 0 | J41: 0
C42: Transportation Charge From Parkway | E42: 0 | F42: =F20*$E42/100*$E$32 -> 0 | H42: =H20*$E42/100*$E$32 -> 0 | J42: 0
C43: Federal Carbon Charge | E43: =$E$37 -> 50000 | F43: =$E43*F21/100*$E$32 -> 74340 | H43: =$E43*H21/100*$E$32 -> 74340 | J43: 0 | L43: 0
C44: Total Delivery | F44: =SUM(F32:F43) -> 946895.04 | H44: =SUM(H32:H43) -> 963014.3811 | J44: =SUM(J32:J43) -> 16119.34111 | L44: 0.0170233663
C46: Rate Riders | E46: Metric | F46: Current Rate | H46: Proposed Rate | J46: Change $ | L46: Change %
C47: =C24 -> Delay in Revenue Recovery Rate Rider | E47: =E32 -> 12 | F47: =$E$47*$E37*$F24/100 -> 360.6 | H47: =$E$47*$E37*$H24/100 -> 360.6 | J47: =H47-F47 -> 0 | L47: =J47/F47 -> 0
C48: =C25 -> ECVA Rate Rider | E48: =E47 -> 12 | F48: =$E$47*$E38*$F25/100 -> 0 | H48: =$E$47*$E38*$H25/100 -> 0 | J48: =H48-F48 -> 0 | L48: =J48/F48 -> 
C49: CIACVA Rate Rider | E49: =E48 -> 12 | F49: 27186.6 | H49: 28598.09666 | J49: 1411.496656 | L49: 0.05191883707
C50: MTVA Rate Rider | E50: =E47 -> 12 | F50: -27338.4 | H50: -33786.6 | J50: -6448.2 | L50: 0.2358660346
C51: ORDA Rate Rider | E51: =E48 -> 12 | F51: 0 | H51: 0 | J51: 0
C52: 0 | E52: =E51 -> 12 | F52: 0 | H52: 0 | J52: 0
C53: Total Rate Riders | F53: =SUM(F47:F52) -> 208.8 | G53: =SUM(G47:G52) -> 0 | H53: -4827.903344 | I53: 0 | J53: -5036.703344 | L53: =J53/F53 -> -24.12214245
C55: Total Bill Impact | F55: =F44+F53 -> 947103.84 | H55: =H44+H53 -> 958186.4778 | J55: =J44+J53 -> 11082.63777 | L55: =J55/F55 -> 0.01170160789

Sheet G1.7 Summary of Bill Impacts
C2: ='A1.1 Distributor Information'!C3 -> Name of LDC: EPCOR Natural Gas Limited Partnership
C3: ='A1.1 Distributor Information'!C4 -> OEB Application Number: EB-2023-0161 Exhibit A - 2024 Custom Incentive Application
C5: Summary of Bill Impacts
C7: =MID(CELL("filename",A1),FIND("]",CELL("filename",A1))+1,255) -> G1.7 Summary of Bill Impacts
C8: Rate Class | E8: Fixed Change | F8: =OneDollar -> Bill 32 Rate | G8: Volumetric Change | H8: Rate Riders | I8: Upstream Recovery Charge | J8: Transportation & Storage Charge | K8: Federal Carbon Charge Change | L8: Total Change | M8: Total Change %
E9: ($/year) | F9: ($/year) | G9: ($/year) | H9: ($/year) | I9: ($/year) | J9: ($/year) | K9: ($/year) | L9: ($/year)
C10: Rate 1 | D10: Existing Residential | E10: ='G1.1 Rate 1 Bill Impact'!J32 -> 7.656936 | F10: ='G1.1 Rate 1 Bill Impact'!J33 -> 0 | G10: =SUM('G1.1 Rate 1 Bill Impact'!J34:J37) -> 14.53464106 | H10: ='G1.1 Rate 1 Bill Impact'!J51 -> -16.10315529 | I10: ='G1.1 Rate 1 Bill Impact'!J39 -> 0 | J10: ='G1.1 Rate 1 Bill Impact'!J40 -> 0 | K10: ='G1.1 Rate 1 Bill Impact'!J41 -> 0 | L10: =SUM(E10:K10) -> 6.088421771 | M10: ='G1.1 Rate 1 Bill Impact'!L53 -> 0.003593883826
C11: Rate 1 | D11: New Residential | E11: ='G1.1 Rate 1 Bill Impact'!J78 -> 7.656936 | F11: ='G1.1 Rate 1 Bill Impact'!J79 -> 0 | G11: =SUM('G1.1 Rate 1 Bill Impact'!J80:J81) -> 13.9773806 | H11: ='G1.1 Rate 1 Bill Impact'!J97 -> -13.99315032 | I11: ='G1.1 Rate 1 Bill Impact'!J85 -> 0 | J11: ='G1.1 Rate 1 Bill Impact'!J86 -> 0 | K11: ='G1.1 Rate 1 Bill Impact'!J87 -> 0 | L11: =SUM(E11:K11) -> 7.641166279 | M11: ='G1.1 Rate 1 Bill Impact'!L99 -> 0.004654317381
C12: Rate 1 | D12: Small Commercial | E12: ='G1.1 Rate 1 Bill Impact'!J123 -> 7.656936 | F12: ='G1.1 Rate 1 Bill Impact'!J124 -> 0 | G12: =SUM('G1.1 Rate 1 Bill Impact'!J125:J128) -> 31.40588484 | H12: ='G1.1 Rate 1 Bill Impact'!J142 -> -35.16617393 | I12: ='G1.1 Rate 1 Bill Impact'!J130 -> 0 | J12: ='G1.1 Rate 1 Bill Impact'!J131 -> 0 | K12: ='G1.1 Rate 1 Bill Impact'!J132 -> 0 | L12: 3.896646914 | M12: ='G1.1 Rate 1 Bill Impact'!L144 -> 0.001184223131
C13: Rate 1 | D13: Small Agricultural | E13: ='G1.1 Rate 1 Bill Impact'!J168 -> 7.656936 | F13: ='G1.1 Rate 1 Bill Impact'!J169 -> 0 | G13: =SUM('G1.1 Rate 1 Bill Impact'!J170:J173) -> 31.58344115 | H13: ='G1.1 Rate 1 Bill Impact'!J187 -> -35.3684937 | I13: ='G1.1 Rate 1 Bill Impact'!J175 -> 0 | J13: ='G1.1 Rate 1 Bill Impact'!J176 -> 0 | K13: ='G1.1 Rate 1 Bill Impact'!J177 -> 0 | L13: 3.871883449 | M13: ='G1.1 Rate 1 Bill Impact'!L189 -> 0.001170691905
C14: Rate 6 | D14: Medium Commercial | E14: ='G1.2 Rate 6 Bill Impact'!J30 -> 31.224648 | F14: ='G1.2 Rate 6 Bill Impact'!J31 -> 0 | G14: =SUM('G1.2 Rate 6 Bill Impact'!J32:J35) -> 159.0502931 | H14: ='G1.2 Rate 6 Bill Impact'!J49 -> -208.9647899 | I14: ='G1.2 Rate 6 Bill Impact'!J37 -> 0 | J14: ='G1.2 Rate 6 Bill Impact'!J38 -> 0 | K14: ='G1.2 Rate 6 Bill Impact'!J39 -> 0 | L14: -18.68984883 | M14: ='G1.2 Rate 6 Bill Impact'!L51 -> -0.001029593472
C15: Rate 6 | D15: Large Commercial | E15: ='G1.2 Rate 6 Bill Impact'!J76 -> 31.224648 | F15: ='G1.2 Rate 6 Bill Impact'!J77 -> 0 | G15: =SUM('G1.2 Rate 6 Bill Impact'!J78:J81) -> 430.3389225 | H15: ='G1.2 Rate 6 Bill Impact'!J95 -> -587.2164306 | I15: ='G1.2 Rate 6 Bill Impact'!J83 -> 0 | J15: ='G1.2 Rate 6 Bill Impact'!J84 -> 0 | K15: ='G1.2 Rate 6 Bill Impact'!J85 -> 0 | L15: -125.6528601 | M15: ='G1.2 Rate 6 Bill Impact'!L97 -> -0.00262232158
C16: Rate 11 | D16: Sample Dryer 1 | E16: ='G1.3 Rate 11 Bill Impact'!J30 -> 62.449296 | F16: ='G1.3 Rate 11 Bill Impact'!J31 -> 0 | G16: =SUM('G1.3 Rate 11 Bill Impact'!J32:J35) -> 397.5690603 | H16: ='G1.3 Rate 11 Bill Impact'!J49 -> -179.4363988 | I16: ='G1.3 Rate 11 Bill Impact'!J37 -> 0 | J16: ='G1.3 Rate 11 Bill Impact'!J38 -> 0 | K16: ='G1.3 Rate 11 Bill Impact'!J39 -> 0 | L16: 280.5819574 | M16: ='G1.3 Rate 11 Bill Impact'!L51 -> 0.005553172862
C17: Rate 11 | D17: Sample Dryer 2 | E17: ='G1.3 Rate 11 Bill Impact'!J75 -> 62.449296 | F17: ='G1.3 Rate 11 Bill Impact'!J76 -> 0 | G17: =SUM('G1.3 Rate 11 Bill Impact'!J77:J80) -> 1325.230201 | H17: ='G1.3 Rate 11 Bill Impact'!J94 -> -598.1213293 | I17: ='G1.3 Rate 11 Bill Impact'!J82 -> 0 | J17: ='G1.3 Rate 11 Bill Impact'!J83 -> 0 | K17: ='G1.3 Rate 11 Bill Impact'!J84 -> 0 | L17: 789.5581675 | M17: ='G1.3 Rate 11 Bill Impact'!L96 -> 0.004865678517
C18: Rate 16 | D18: Contracted Demand | E18: ='G1.4 Rate 16 Bill Impact'!J32 -> 459.179112 | F18: ='G1.4 Rate 16 Bill Impact'!J33 -> 0 | G18: =SUM('G1.4 Rate 16 Bill Impact'!J34:J37) -> 15660.162 | H18: ='G1.4 Rate 16 Bill Impact'!J53 -> -5036.703344 | I18: ='G1.4 Rate 16 Bill Impact'!J39 -> 0 | J18: =SUM('G1.4 Rate 16 Bill Impact'!J40:J42) -> 0 | K18: ='G1.4 Rate 16 Bill Impact'!J43 -> 0 | L18: 11082.63777 | M18: ='G1.4 Rate 16 Bill Impact'!L55 -> 0.01170160789
